{"text_format":"3","workbook":"xlsx","n_sheets":9,"sheets":["Context","1000000","1210000","1311000","1410000 1 CurrentYear","1410000 2 PriorYear","1510000","hidden","Token"],"not_rendered":{"defined_names":2995},"read":"whole","date_system":"1900"}

{"sheet":"Context","index":0,"n_rows":825,"n_cols":2,"rows_kept":825,"hidden":true}
["Context"]
[]
["entity"]
["identifier","WTON"]
["scheme","http://www.idx.co.id"]
[]
["period"]
["startDate","2020-01-01"]
["endDate","2020-09-30"]
["instant","2020-09-30"]
["startDate","2019-01-01"]
["endDate","2019-12-31"]
["instant","2019-12-31"]
["startDate","2019-01-01"]
["endDate","2019-09-30"]
["instant","2019-09-30"]
["startDate","2018-01-01"]
["endDate","2018-12-31"]
["instant","2018-12-31"]
[]
["CurrentYearDuration"]
["entity"]
["identifier",{"$f":"rap.context.identifier","v":"\n    entityCode\n   "}]
["scheme",{"$f":"rap.context.scheme","v":"http://www.idx.co.id/"}]
["period"]
["startDate",{"$f":"rap.date.1","v":"2011-01-01"}]
["endDate",{"$f":"rap.date.2","v":"2011-09-30"}]
[]
["CurrentYearDuration_AdditionalPaidInCapitalMember"]
["entity"]
["identifier",{"$f":"rap.context.identifier","v":"\n    entityCode\n   "}]
["scheme",{"$f":"rap.context.scheme","v":"http://www.idx.co.id/"}]
["period"]
["startDate",{"$f":"rap.date.1","v":"2011-01-01"}]
["endDate",{"$f":"rap.date.2","v":"2011-09-30"}]
[]
["CurrentYearDuration_AdvancesInCapitalStockMember"]
["entity"]
["identifier",{"$f":"rap.context.identifier","v":"\n    entityCode\n   "}]
["scheme",{"$f":"rap.context.scheme","v":"http://www.idx.co.id/"}]
["period"]
["startDate",{"$f":"rap.date.1","v":"2011-01-01"}]
["endDate",{"$f":"rap.date.2","v":"2011-09-30"}]
[]
["CurrentYearDuration_AppropriatedRetainedEarningsGeneralAndLegalReservesMember"]
["entity"]
["identifier",{"$f":"rap.context.identifier","v":"\n    entityCode\n   "}]
["scheme",{"$f":"rap.context.scheme","v":"http://www.idx.co.id/"}]
["period"]
["startDate",{"$f":"rap.date.1","v":"2011-01-01"}]
["endDate",{"$f":"rap.date.2","v":"2011-09-30"}]
[]
["CurrentYearDuration_AppropriatedRetainedEarningsMember"]
["entity"]
["identifier",{"$f":"rap.context.identifier","v":"\n    entityCode\n   "}]
["scheme",{"$f":"rap.context.scheme","v":"http://www.idx.co.id/"}]
["period"]
["startDate",{"$f":"rap.date.1","v":"2011-01-01"}]
["endDate",{"$f":"rap.date.2","v":"2011-09-30"}]
[]
["CurrentYearDuration_CommonStocksMember"]
["entity"]
["identifier",{"$f":"rap.context.identifier","v":"\n    entityCode\n   "}]
["scheme",{"$f":"rap.context.scheme","v":"http://www.idx.co.id/"}]
["period"]
["startDate",{"$f":"rap.date.1","v":"2011-01-01"}]
["endDate",{"$f":"rap.date.2","v":"2011-09-30"}]
[]
["CurrentYearDuration_DifferenceInValueOfEquityTransactionsWithNonControllingInterestsMember"]
["entity"]
["identifier",{"$f":"rap.context.identifier","v":"\n    entityCode\n   "}]
["scheme",{"$f":"rap.context.scheme","v":"http://www.idx.co.id/"}]
["period"]
["startDate",{"$f":"rap.date.1","v":"2011-01-01"}]
["endDate",{"$f":"rap.date.2","v":"2011-09-30"}]
[]
["CurrentYearDuration_EquityAttributableToParentEntityMember"]
["entity"]
["identifier",{"$f":"rap.context.identifier","v":"\n    entityCode\n   "}]
["scheme",{"$f":"rap.context.scheme","v":"http://www.idx.co.id/"}]
["period"]
["startDate",{"$f":"rap.date.1","v":"2011-01-01"}]
["endDate",{"$f":"rap.date.2","v":"2011-09-30"}]
[]
["CurrentYearDuration_NetAssetsAttributableToParticipationUnitHoldersMember"]
["entity"]
["identifier",{"$f":"rap.context.identifier","v":"\n    entityCode\n   "}]
["scheme",{"$f":"rap.context.scheme","v":"http://www.idx.co.id/"}]
["period"]
["startDate",{"$f":"rap.date.1","v":"2011-01-01"}]
["endDate",{"$f":"rap.date.2","v":"2011-09-30"}]
[]
["CurrentYearDuration_NonControllingInterestsMember"]
["entity"]
["identifier",{"$f":"rap.context.identifier","v":"\n    entityCode\n   "}]
["scheme",{"$f":"rap.context.scheme","v":"http://www.idx.co.id/"}]
["period"]
["startDate",{"$f":"rap.date.1","v":"2011-01-01"}]
["endDate",{"$f":"rap.date.2","v":"2011-09-30"}]
[]
["CurrentYearDuration_OtherComponentsOfEquityTransactionsMember"]
["entity"]
["identifier",{"$f":"rap.context.identifier","v":"\n    entityCode\n   "}]
["scheme",{"$f":"rap.context.scheme","v":"http://www.idx.co.id/"}]
["period"]
["startDate",{"$f":"rap.date.1","v":"2011-01-01"}]
["endDate",{"$f":"rap.date.2","v":"2011-09-30"}]
[]
["CurrentYearDuration_OtherEquityInterestsMember"]
["entity"]
["identifier",{"$f":"rap.context.identifier","v":"\n    entityCode\n   "}]
["scheme",{"$f":"rap.context.scheme","v":"http://www.idx.co.id/"}]
["period"]
["startDate",{"$f":"rap.date.1","v":"2011-01-01"}]
["endDate",{"$f":"rap.date.2","v":"2011-09-30"}]
[]
["CurrentYearDuration_OtherReservesMember"]
["entity"]
["identifier",{"$f":"rap.context.identifier","v":"\n    entityCode\n   "}]
["scheme",{"$f":"rap.context.scheme","v":"http://www.idx.co.id/"}]
["period"]
["startDate",{"$f":"rap.date.1","v":"2011-01-01"}]
["endDate",{"$f":"rap.date.2","v":"2011-09-30"}]
[]
["CurrentYearDuration_OtherTransactionsWithNonControllingInterestsMember"]
["entity"]
["identifier",{"$f":"rap.context.identifier","v":"\n    entityCode\n   "}]
["scheme",{"$f":"rap.context.scheme","v":"http://www.idx.co.id/"}]
["period"]
["startDate",{"$f":"rap.date.1","v":"2011-01-01"}]
["endDate",{"$f":"rap.date.2","v":"2011-09-30"}]
[]
["CurrentYearDuration_PreferredStocksMember"]
["entity"]
["identifier",{"$f":"rap.context.identifier","v":"\n    entityCode\n   "}]
["scheme",{"$f":"rap.context.scheme","v":"http://www.idx.co.id/"}]
["period"]
["startDate",{"$f":"rap.date.1","v":"2011-01-01"}]
["endDate",{"$f":"rap.date.2","v":"2011-09-30"}]
[]
["CurrentYearDuration_ProformaEquityMember"]
["entity"]
["identifier",{"$f":"rap.context.identifier","v":"\n    entityCode\n   "}]
["scheme",{"$f":"rap.context.scheme","v":"http://www.idx.co.id/"}]
["period"]
["startDate",{"$f":"rap.date.1","v":"2011-01-01"}]
["endDate",{"$f":"rap.date.2","v":"2011-09-30"}]
[]
["CurrentYearDuration_ReserveForChangesInFairValueOfAvailableForSaleFinancialAssetsMember"]
["entity"]
["identifier",{"$f":"rap.context.identifier","v":"\n    entityCode\n   "}]
["scheme",{"$f":"rap.context.scheme","v":"http://www.idx.co.id/"}]
["period"]
["startDate",{"$f":"rap.date.1","v":"2011-01-01"}]
["endDate",{"$f":"rap.date.2","v":"2011-09-30"}]
[]
["CurrentYearDuration_ReserveOfCashFlowHedgesMember"]
["entity"]
["identifier",{"$f":"rap.context.identifier","v":"\n    entityCode\n   "}]
["scheme",{"$f":"rap.context.scheme","v":"http://www.idx.co.id/"}]
["period"]
["startDate",{"$f":"rap.date.1","v":"2011-01-01"}]
["endDate",{"$f":"rap.date.2","v":"2011-09-30"}]
[]
["CurrentYearDuration_ReserveOfExchangeDifferencesOnTranslationMember"]
["entity"]
["identifier",{"$f":"rap.context.identifier","v":"\n    entityCode\n   "}]
["scheme",{"$f":"rap.context.scheme","v":"http://www.idx.co.id/"}]
["period"]
["startDate",{"$f":"rap.date.1","v":"2011-01-01"}]
["endDate",{"$f":"rap.date.2","v":"2011-09-30"}]
[]
["CurrentYearDuration_ReserveOfGainsLossesFromInvestmentsInEquityInstrumentsMember"]
["entity"]
["identifier",{"$f":"rap.context.identifier","v":"\n    entityCode\n   "}]
["scheme",{"$f":"rap.context.scheme","v":"http://www.idx.co.id/"}]
["period"]
["startDate",{"$f":"rap.date.1","v":"2011-01-01"}]
["endDate",{"$f":"rap.date.2","v":"2011-09-30"}]
[]
["CurrentYearDuration_ReserveOfRemeasurementsOfDefinedBenefitPlansMember"]
["entity"]
["identifier",{"$f":"rap.context.identifier","v":"\n    entityCode\n   "}]
["scheme",{"$f":"rap.context.scheme","v":"http://www.idx.co.id/"}]
["period"]
["startDate",{"$f":"rap.date.1","v":"2011-01-01"}]
["endDate",{"$f":"rap.date.2","v":"2011-09-30"}]
[]
["CurrentYearDuration_ReserveOfShareBasedPaymentsMember"]
["entity"]
["identifier",{"$f":"rap.context.identifier","v":"\n    entityCode\n   "}]
["scheme",{"$f":"rap.context.scheme","v":"http://www.idx.co.id/"}]
["period"]
["startDate",{"$f":"rap.date.1","v":"2011-01-01"}]
["endDate",{"$f":"rap.date.2","v":"2011-09-30"}]
[]
["CurrentYearDuration_RevaluationReservesMember"]
["entity"]
["identifier",{"$f":"rap.context.identifier","v":"\n    entityCode\n   "}]
["scheme",{"$f":"rap.context.scheme","v":"http://www.idx.co.id/"}]
["period"]
["startDate",{"$f":"rap.date.1","v":"2011-01-01"}]
["endDate",{"$f":"rap.date.2","v":"2011-09-30"}]
[]
["CurrentYearDuration_StockOptionsMember"]
["entity"]
["identifier",{"$f":"rap.context.identifier","v":"\n    entityCode\n   "}]
["scheme",{"$f":"rap.context.scheme","v":"http://www.idx.co.id/"}]
["period"]
["startDate",{"$f":"rap.date.1","v":"2011-01-01"}]
["endDate",{"$f":"rap.date.2","v":"2011-09-30"}]
[]
["CurrentYearDuration_TreasuryStocksMember"]
["entity"]
["identifier",{"$f":"rap.context.identifier","v":"\n    entityCode\n   "}]
["scheme",{"$f":"rap.context.scheme","v":"http://www.idx.co.id/"}]
["period"]
["startDate",{"$f":"rap.date.1","v":"2011-01-01"}]
["endDate",{"$f":"rap.date.2","v":"2011-09-30"}]
[]
["CurrentYearDuration_UnappropriatedRetainedEarningsMember"]
["entity"]
["identifier",{"$f":"rap.context.identifier","v":"\n    entityCode\n   "}]
["scheme",{"$f":"rap.context.scheme","v":"http://www.idx.co.id/"}]
["period"]
["startDate",{"$f":"rap.date.1","v":"2011-01-01"}]
["endDate",{"$f":"rap.date.2","v":"2011-09-30"}]
[]
["CurrentYearInstant"]
["entity"]
["identifier",{"$f":"rap.context.identifier","v":"\n    entityCode\n   "}]
["scheme",{"$f":"rap.context.scheme","v":"http://www.idx.co.id/"}]
["period"]
["instant",{"$f":"rap.date.3","v":"2011-09-30"}]
[]
["CurrentYearInstant_AdditionalPaidInCapitalMember"]
["entity"]
["identifier",{"$f":"rap.context.identifier","v":"\n    entityCode\n   "}]
["scheme",{"$f":"rap.context.scheme","v":"http://www.idx.co.id/"}]
["period"]
["instant",{"$f":"rap.date.3","v":"2011-09-30"}]
[]
["CurrentYearInstant_AdvancesInCapitalStockMember"]
["entity"]
["identifier",{"$f":"rap.context.identifier","v":"\n    entityCode\n   "}]
["scheme",{"$f":"rap.context.scheme","v":"http://www.idx.co.id/"}]
["period"]
["instant",{"$f":"rap.date.3","v":"2011-09-30"}]
[]
["CurrentYearInstant_AppropriatedRetainedEarningsGeneralAndLegalReservesMember"]
["entity"]
["identifier",{"$f":"rap.context.identifier","v":"\n    entityCode\n   "}]
["scheme",{"$f":"rap.context.scheme","v":"http://www.idx.co.id/"}]
["period"]
["instant",{"$f":"rap.date.3","v":"2011-09-30"}]
[]
["CurrentYearInstant_AppropriatedRetainedEarningsMember"]
["entity"]
["identifier",{"$f":"rap.context.identifier","v":"\n    entityCode\n   "}]
["scheme",{"$f":"rap.context.scheme","v":"http://www.idx.co.id/"}]
["period"]
["instant",{"$f":"rap.date.3","v":"2011-09-30"}]
[]
[]
["CurrentYearInstant_CommonStocksMember"]
["entity"]
["identifier",{"$f":"rap.context.identifier","v":"\n    entityCode\n   "}]
["scheme",{"$f":"rap.context.scheme","v":"http://www.idx.co.id/"}]
["period"]
["instant",{"$f":"rap.date.3","v":"2011-09-30"}]
[]
["CurrentYearInstant_DifferenceInValueOfEquityTransactionsWithNonControllingInterestsMember"]
["entity"]
["identifier",{"$f":"rap.context.identifier","v":"\n    entityCode\n   "}]
["scheme",{"$f":"rap.context.scheme","v":"http://www.idx.co.id/"}]
["period"]
["instant",{"$f":"rap.date.3","v":"2011-09-30"}]
[]
["CurrentYearInstant_EquityAttributableToParentEntityMember"]
["entity"]
["identifier",{"$f":"rap.context.identifier","v":"\n    entityCode\n   "}]
["scheme",{"$f":"rap.context.scheme","v":"http://www.idx.co.id/"}]
["period"]
["instant",{"$f":"rap.date.3","v":"2011-09-30"}]
[]
["CurrentYearInstant_NetAssetsAttributableToParticipationUnitHoldersMember"]
["entity"]
["identifier",{"$f":"rap.context.identifier","v":"\n    entityCode\n   "}]
["scheme",{"$f":"rap.context.scheme","v":"http://www.idx.co.id/"}]
["period"]
["instant",{"$f":"rap.date.3","v":"2011-09-30"}]
[]
["CurrentYearInstant_NonControllingInterestsMember"]
["entity"]
["identifier",{"$f":"rap.context.identifier","v":"\n    entityCode\n   "}]
["scheme",{"$f":"rap.context.scheme","v":"http://www.idx.co.id/"}]
["period"]
["instant",{"$f":"rap.date.3","v":"2011-09-30"}]
[]
["CurrentYearInstant_OtherComponentsOfEquityTransactionsMember"]
["entity"]
["identifier",{"$f":"rap.context.identifier","v":"\n    entityCode\n   "}]
["scheme",{"$f":"rap.context.scheme","v":"http://www.idx.co.id/"}]
["period"]
["instant",{"$f":"rap.date.3","v":"2011-09-30"}]
[]
["CurrentYearInstant_OtherEquityInterestsMember"]
["entity"]
["identifier",{"$f":"rap.context.identifier","v":"\n    entityCode\n   "}]
["scheme",{"$f":"rap.context.scheme","v":"http://www.idx.co.id/"}]
["period"]
["instant",{"$f":"rap.date.3","v":"2011-09-30"}]
[]
["CurrentYearInstant_OtherReservesMember"]
["entity"]
["identifier",{"$f":"rap.context.identifier","v":"\n    entityCode\n   "}]
["scheme",{"$f":"rap.context.scheme","v":"http://www.idx.co.id/"}]
["period"]
["instant",{"$f":"rap.date.3","v":"2011-09-30"}]
[]
["CurrentYearInstant_OtherTransactionsWithNonControllingInterestsMember"]
["entity"]
["identifier",{"$f":"rap.context.identifier","v":"\n    entityCode\n   "}]
["scheme",{"$f":"rap.context.scheme","v":"http://www.idx.co.id/"}]
["period"]
["instant",{"$f":"rap.date.3","v":"2011-09-30"}]
[]
["CurrentYearInstant_PreferredStocksMember"]
["entity"]
["identifier",{"$f":"rap.context.identifier","v":"\n    entityCode\n   "}]
["scheme",{"$f":"rap.context.scheme","v":"http://www.idx.co.id/"}]
["period"]
["instant",{"$f":"rap.date.3","v":"2011-09-30"}]
[]
["CurrentYearInstant_ProformaEquityMember"]
["entity"]
["identifier",{"$f":"rap.context.identifier","v":"\n    entityCode\n   "}]
["scheme",{"$f":"rap.context.scheme","v":"http://www.idx.co.id/"}]
["period"]
["instant",{"$f":"rap.date.3","v":"2011-09-30"}]
[]
["CurrentYearInstant_ReserveForChangesInFairValueOfAvailableForSaleFinancialAssetsMember"]
["entity"]
["identifier",{"$f":"rap.context.identifier","v":"\n    entityCode\n   "}]
["scheme",{"$f":"rap.context.scheme","v":"http://www.idx.co.id/"}]
["period"]
["instant",{"$f":"rap.date.3","v":"2011-09-30"}]
[]
["CurrentYearInstant_ReserveOfCashFlowHedgesMember"]
["entity"]
["identifier",{"$f":"rap.context.identifier","v":"\n    entityCode\n   "}]
["scheme",{"$f":"rap.context.scheme","v":"http://www.idx.co.id/"}]
["period"]
["instant",{"$f":"rap.date.3","v":"2011-09-30"}]
[]
["CurrentYearInstant_ReserveOfExchangeDifferencesOnTranslationMember"]
["entity"]
["identifier",{"$f":"rap.context.identifier","v":"\n    entityCode\n   "}]
["scheme",{"$f":"rap.context.scheme","v":"http://www.idx.co.id/"}]
["period"]
["instant",{"$f":"rap.date.3","v":"2011-09-30"}]
[]
["CurrentYearInstant_ReserveOfGainsLossesFromInvestmentsInEquityInstrumentsMember"]
["entity"]
["identifier",{"$f":"rap.context.identifier","v":"\n    entityCode\n   "}]
["scheme",{"$f":"rap.context.scheme","v":"http://www.idx.co.id/"}]
["period"]
["instant",{"$f":"rap.date.3","v":"2011-09-30"}]
[]
["CurrentYearInstant_ReserveOfRemeasurementsOfDefinedBenefitPlansMember"]
["entity"]
["identifier",{"$f":"rap.context.identifier","v":"\n    entityCode\n   "}]
["scheme",{"$f":"rap.context.scheme","v":"http://www.idx.co.id/"}]
["period"]
["instant",{"$f":"rap.date.3","v":"2011-09-30"}]
[]
["CurrentYearInstant_ReserveOfShareBasedPaymentsMember"]
["entity"]
["identifier",{"$f":"rap.context.identifier","v":"\n    entityCode\n   "}]
["scheme",{"$f":"rap.context.scheme","v":"http://www.idx.co.id/"}]
["period"]
["instant",{"$f":"rap.date.3","v":"2011-09-30"}]
[]
[]
["CurrentYearInstant_RevaluationReservesMember"]
["entity"]
["identifier",{"$f":"rap.context.identifier","v":"\n    entityCode\n   "}]
["scheme",{"$f":"rap.context.scheme","v":"http://www.idx.co.id/"}]
["period"]
["instant",{"$f":"rap.date.3","v":"2011-09-30"}]
[]
["CurrentYearInstant_StockOptionsMember"]
["entity"]
["identifier",{"$f":"rap.context.identifier","v":"\n    entityCode\n   "}]
["scheme",{"$f":"rap.context.scheme","v":"http://www.idx.co.id/"}]
["period"]
["instant",{"$f":"rap.date.3","v":"2011-09-30"}]
[]
["CurrentYearInstant_TreasuryStocksMember"]
["entity"]
["identifier",{"$f":"rap.context.identifier","v":"\n    entityCode\n   "}]
["scheme",{"$f":"rap.context.scheme","v":"http://www.idx.co.id/"}]
["period"]
["instant",{"$f":"rap.date.3","v":"2011-09-30"}]
[]
["CurrentYearInstant_UnappropriatedRetainedEarningsMember"]
["entity"]
["identifier",{"$f":"rap.context.identifier","v":"\n    entityCode\n   "}]
["scheme",{"$f":"rap.context.scheme","v":"http://www.idx.co.id/"}]
["period"]
["instant",{"$f":"rap.date.3","v":"2011-09-30"}]
[]
["PriorEndYearDuration"]
["entity"]
["identifier",{"$f":"rap.context.identifier","v":"\n    entityCode\n   "}]
["scheme",{"$f":"rap.context.scheme","v":"http://www.idx.co.id/"}]
["period"]
["startDate",{"$f":"rap.date.4","v":"2010-01-01"}]
["endDate",{"$f":"rap.date.5","v":"2010-12-31"}]
[]
["PriorEndYearInstant"]
["entity"]
["identifier",{"$f":"rap.context.identifier","v":"\n    entityCode\n   "}]
["scheme",{"$f":"rap.context.scheme","v":"http://www.idx.co.id/"}]
["period"]
["instant",{"$f":"rap.date.6","v":"2010-12-31"}]
[]
["PriorYearDuration"]
["entity"]
["identifier",{"$f":"rap.context.identifier","v":"\n    entityCode\n   "}]
["scheme",{"$f":"rap.context.scheme","v":"http://www.idx.co.id/"}]
["period"]
["startDate",{"$f":"rap.date.7","v":"2010-01-01"}]
["endDate",{"$f":"rap.date.8","v":"2010-09-30"}]
[]
["PriorYearDuration_AdditionalPaidInCapitalMember"]
["entity"]
["identifier",{"$f":"rap.context.identifier","v":"\n    entityCode\n   "}]
["scheme",{"$f":"rap.context.scheme","v":"http://www.idx.co.id/"}]
["period"]
["startDate",{"$f":"rap.date.7","v":"2010-01-01"}]
["endDate",{"$f":"rap.date.8","v":"2010-09-30"}]
[]
["PriorYearDuration_AdvancesInCapitalStockMember"]
["entity"]
["identifier",{"$f":"rap.context.identifier","v":"\n    entityCode\n   "}]
["scheme",{"$f":"rap.context.scheme","v":"http://www.idx.co.id/"}]
["period"]
["startDate",{"$f":"rap.date.7","v":"2010-01-01"}]
["endDate",{"$f":"rap.date.8","v":"2010-09-30"}]
[]
["PriorYearDuration_AppropriatedRetainedEarningsMember"]
["entity"]
["identifier",{"$f":"rap.context.identifier","v":"\n    entityCode\n   "}]
["scheme",{"$f":"rap.context.scheme","v":"http://www.idx.co.id/"}]
["period"]
["startDate",{"$f":"rap.date.7","v":"2010-01-01"}]
["endDate",{"$f":"rap.date.8","v":"2010-09-30"}]
[]
["PriorYearDuration_AppropriatedRetainedEarningsSpecificReservesMember"]
["entity"]
["identifier",{"$f":"rap.context.identifier","v":"\n    entityCode\n   "}]
["scheme",{"$f":"rap.context.scheme","v":"http://www.idx.co.id/"}]
["period"]
["startDate",{"$f":"rap.date.7","v":"2010-01-01"}]
["endDate",{"$f":"rap.date.8","v":"2010-09-30"}]
[]
["PriorYearDuration_CommonStocksMember"]
["entity"]
["identifier",{"$f":"rap.context.identifier","v":"\n    entityCode\n   "}]
["scheme",{"$f":"rap.context.scheme","v":"http://www.idx.co.id/"}]
["period"]
["startDate",{"$f":"rap.date.7","v":"2010-01-01"}]
["endDate",{"$f":"rap.date.8","v":"2010-09-30"}]
[]
["PriorYearDuration_DifferenceInValueOfEquityTransactionsWithNonControllingInterestsMember"]
["entity"]
["identifier",{"$f":"rap.context.identifier","v":"\n    entityCode\n   "}]
["scheme",{"$f":"rap.context.scheme","v":"http://www.idx.co.id/"}]
["period"]
["startDate",{"$f":"rap.date.7","v":"2010-01-01"}]
["endDate",{"$f":"rap.date.8","v":"2010-09-30"}]
[]
["PriorYearDuration_EquityAttributableToParentEntityMember"]
["entity"]
["identifier",{"$f":"rap.context.identifier","v":"\n    entityCode\n   "}]
["scheme",{"$f":"rap.context.scheme","v":"http://www.idx.co.id/"}]
["period"]
["startDate",{"$f":"rap.date.7","v":"2010-01-01"}]
["endDate",{"$f":"rap.date.8","v":"2010-09-30"}]
[]
["PriorYearDuration_NonControllingInterestsMember"]
["entity"]
["identifier",{"$f":"rap.context.identifier","v":"\n    entityCode\n   "}]
["scheme",{"$f":"rap.context.scheme","v":"http://www.idx.co.id/"}]
["period"]
["startDate",{"$f":"rap.date.7","v":"2010-01-01"}]
["endDate",{"$f":"rap.date.8","v":"2010-09-30"}]
[]
["PriorYearDuration_OtherComponentsOfEquityTransactionsMember"]
["entity"]
["identifier",{"$f":"rap.context.identifier","v":"\n    entityCode\n   "}]
["scheme",{"$f":"rap.context.scheme","v":"http://www.idx.co.id/"}]
["period"]
["startDate",{"$f":"rap.date.7","v":"2010-01-01"}]
["endDate",{"$f":"rap.date.8","v":"2010-09-30"}]
[]
["PriorYearDuration_OtherEquityInterestsMember"]
["entity"]
["identifier",{"$f":"rap.context.identifier","v":"\n    entityCode\n   "}]
["scheme",{"$f":"rap.context.scheme","v":"http://www.idx.co.id/"}]
["period"]
["startDate",{"$f":"rap.date.7","v":"2010-01-01"}]
["endDate",{"$f":"rap.date.8","v":"2010-09-30"}]
[]
["PriorYearDuration_OtherReservesMember"]
["entity"]
["identifier",{"$f":"rap.context.identifier","v":"\n    entityCode\n   "}]
["scheme",{"$f":"rap.context.scheme","v":"http://www.idx.co.id/"}]
["period"]
["startDate",{"$f":"rap.date.7","v":"2010-01-01"}]
["endDate",{"$f":"rap.date.8","v":"2010-09-30"}]
[]
["PriorYearDuration_OtherTransactionsWithNonControllingInterestsMember"]
["entity"]
["identifier",{"$f":"rap.context.identifier","v":"\n    entityCode\n   "}]
["scheme",{"$f":"rap.context.scheme","v":"http://www.idx.co.id/"}]
["period"]
["startDate",{"$f":"rap.date.7","v":"2010-01-01"}]
["endDate",{"$f":"rap.date.8","v":"2010-09-30"}]
[]
["PriorYearDuration_PreferredStocksMember"]
["entity"]
["identifier",{"$f":"rap.context.identifier","v":"\n    entityCode\n   "}]
["scheme",{"$f":"rap.context.scheme","v":"http://www.idx.co.id/"}]
["period"]
["startDate",{"$f":"rap.date.7","v":"2010-01-01"}]
["endDate",{"$f":"rap.date.8","v":"2010-09-30"}]
[]
["PriorYearDuration_ProformaEquityMember"]
["entity"]
["identifier",{"$f":"rap.context.identifier","v":"\n    entityCode\n   "}]
["scheme",{"$f":"rap.context.scheme","v":"http://www.idx.co.id/"}]
["period"]
["startDate",{"$f":"rap.date.7","v":"2010-01-01"}]
["endDate",{"$f":"rap.date.8","v":"2010-09-30"}]
[]
["PriorYearDuration_ReserveForChangesInFairValueOfAvailableForSaleFinancialAssetsMember"]
["entity"]
["identifier",{"$f":"rap.context.identifier","v":"\n    entityCode\n   "}]
["scheme",{"$f":"rap.context.scheme","v":"http://www.idx.co.id/"}]
["period"]
["startDate",{"$f":"rap.date.7","v":"2010-01-01"}]
["endDate",{"$f":"rap.date.8","v":"2010-09-30"}]
[]
["PriorYearDuration_ReserveOfCashFlowHedgesMember"]
["entity"]
["identifier",{"$f":"rap.context.identifier","v":"\n    entityCode\n   "}]
["scheme",{"$f":"rap.context.scheme","v":"http://www.idx.co.id/"}]
["period"]
["startDate",{"$f":"rap.date.7","v":"2010-01-01"}]
["endDate",{"$f":"rap.date.8","v":"2010-09-30"}]
[]
["PriorYearDuration_ReserveOfExchangeDifferencesOnTranslationMember"]
["entity"]
["identifier",{"$f":"rap.context.identifier","v":"\n    entityCode\n   "}]
["scheme",{"$f":"rap.context.scheme","v":"http://www.idx.co.id/"}]
["period"]
["startDate",{"$f":"rap.date.7","v":"2010-01-01"}]
["endDate",{"$f":"rap.date.8","v":"2010-09-30"}]
[]
["PriorYearDuration_ReserveOfGainsLossesFromInvestmentsInEquityInstrumentsMember"]
["entity"]
["identifier",{"$f":"rap.context.identifier","v":"\n    entityCode\n   "}]
["scheme",{"$f":"rap.context.scheme","v":"http://www.idx.co.id/"}]
["period"]
["startDate",{"$f":"rap.date.7","v":"2010-01-01"}]
["endDate",{"$f":"rap.date.8","v":"2010-09-30"}]
[]
["PriorYearDuration_ReserveOfRemeasurementsOfDefinedBenefitPlansMember"]
["entity"]
["identifier",{"$f":"rap.context.identifier","v":"\n    entityCode\n   "}]
["scheme",{"$f":"rap.context.scheme","v":"http://www.idx.co.id/"}]
["period"]
["startDate",{"$f":"rap.date.7","v":"2010-01-01"}]
["endDate",{"$f":"rap.date.8","v":"2010-09-30"}]
[]
["PriorYearDuration_ReserveOfShareBasedPaymentsMember"]
["entity"]
["identifier",{"$f":"rap.context.identifier","v":"\n    entityCode\n   "}]
["scheme",{"$f":"rap.context.scheme","v":"http://www.idx.co.id/"}]
["period"]
["startDate",{"$f":"rap.date.7","v":"2010-01-01"}]
["endDate",{"$f":"rap.date.8","v":"2010-09-30"}]
[]
["PriorYearDuration_RetainedEarningsMember"]
["entity"]
["identifier",{"$f":"rap.context.identifier","v":"\n    entityCode\n   "}]
["scheme",{"$f":"rap.context.scheme","v":"http://www.idx.co.id/"}]
["period"]
["startDate",{"$f":"rap.date.7","v":"2010-01-01"}]
["endDate",{"$f":"rap.date.8","v":"2010-09-30"}]
[]
["PriorYearDuration_RevaluationReservesMember"]
["entity"]
["identifier",{"$f":"rap.context.identifier","v":"\n    entityCode\n   "}]
["scheme",{"$f":"rap.context.scheme","v":"http://www.idx.co.id/"}]
["period"]
["startDate",{"$f":"rap.date.7","v":"2010-01-01"}]
["endDate",{"$f":"rap.date.8","v":"2010-09-30"}]
[]
["PriorYearDuration_StockOptionsMember"]
["entity"]
["identifier",{"$f":"rap.context.identifier","v":"\n    entityCode\n   "}]
["scheme",{"$f":"rap.context.scheme","v":"http://www.idx.co.id/"}]
["period"]
["startDate",{"$f":"rap.date.7","v":"2010-01-01"}]
["endDate",{"$f":"rap.date.8","v":"2010-09-30"}]
[]
["PriorYearDuration_TreasuryStocksMember"]
["entity"]
["identifier",{"$f":"rap.context.identifier","v":"\n    entityCode\n   "}]
["scheme",{"$f":"rap.context.scheme","v":"http://www.idx.co.id/"}]
["period"]
["startDate",{"$f":"rap.date.7","v":"2010-01-01"}]
["endDate",{"$f":"rap.date.8","v":"2010-09-30"}]
[]
["PriorYearDuration_UnappropriatedRetainedEarningsMember"]
["entity"]
["identifier",{"$f":"rap.context.identifier","v":"\n    entityCode\n   "}]
["scheme",{"$f":"rap.context.scheme","v":"http://www.idx.co.id/"}]
["period"]
["startDate",{"$f":"rap.date.7","v":"2010-01-01"}]
["endDate",{"$f":"rap.date.8","v":"2010-09-30"}]
[]
["PriorYearInstant"]
["entity"]
["identifier",{"$f":"rap.context.identifier","v":"\n    entityCode\n   "}]
["scheme",{"$f":"rap.context.scheme","v":"http://www.idx.co.id/"}]
["period"]
["instant",{"$f":"rap.date.9","v":"2010-09-30"}]
[]
["PriorYearInstant_AdditionalPaidInCapitalMember"]
["entity"]
["identifier",{"$f":"rap.context.identifier","v":"\n    entityCode\n   "}]
["scheme",{"$f":"rap.context.scheme","v":"http://www.idx.co.id/"}]
["period"]
["instant",{"$f":"rap.date.9","v":"2010-09-30"}]
[]
["PriorYearInstant_AdvancesInCapitalStockMember"]
["entity"]
["identifier",{"$f":"rap.context.identifier","v":"\n    entityCode\n   "}]
["scheme",{"$f":"rap.context.scheme","v":"http://www.idx.co.id/"}]
["period"]
["instant",{"$f":"rap.date.9","v":"2010-09-30"}]
[]
[]
["PriorYearInstant_AppropriatedRetainedEarningsMember"]
["entity"]
["identifier",{"$f":"rap.context.identifier","v":"\n    entityCode\n   "}]
["scheme",{"$f":"rap.context.scheme","v":"http://www.idx.co.id/"}]
["period"]
["instant",{"$f":"rap.date.9","v":"2010-09-30"}]
[]
["PriorYearInstant_AppropriatedRetainedEarningsSpecificReservesMember"]
["entity"]
["identifier",{"$f":"rap.context.identifier","v":"\n    entityCode\n   "}]
["scheme",{"$f":"rap.context.scheme","v":"http://www.idx.co.id/"}]
["period"]
["instant",{"$f":"rap.date.9","v":"2010-09-30"}]
[]
["PriorYearInstant_CommonStocksMember"]
["entity"]
["identifier",{"$f":"rap.context.identifier","v":"\n    entityCode\n   "}]
["scheme",{"$f":"rap.context.scheme","v":"http://www.idx.co.id/"}]
["period"]
["instant",{"$f":"rap.date.9","v":"2010-09-30"}]
[]
["PriorYearInstant_DifferenceInValueOfEquityTransactionsWithNonControllingInterestsMember"]
["entity"]
["identifier",{"$f":"rap.context.identifier","v":"\n    entityCode\n   "}]
["scheme",{"$f":"rap.context.scheme","v":"http://www.idx.co.id/"}]
["period"]
["instant",{"$f":"rap.date.9","v":"2010-09-30"}]
[]
["PriorYearInstant_EquityAttributableToParentEntityMember"]
["entity"]
["identifier",{"$f":"rap.context.identifier","v":"\n    entityCode\n   "}]
["scheme",{"$f":"rap.context.scheme","v":"http://www.idx.co.id/"}]
["period"]
["instant",{"$f":"rap.date.9","v":"2010-09-30"}]
[]
[]
["PriorYearInstant_NonControllingInterestsMember"]
["entity"]
["identifier",{"$f":"rap.context.identifier","v":"\n    entityCode\n   "}]
["scheme",{"$f":"rap.context.scheme","v":"http://www.idx.co.id/"}]
["period"]
["instant",{"$f":"rap.date.9","v":"2010-09-30"}]
[]
["PriorYearInstant_OtherComponentsOfEquityTransactionsMember"]
["entity"]
["identifier",{"$f":"rap.context.identifier","v":"\n    entityCode\n   "}]
["scheme",{"$f":"rap.context.scheme","v":"http://www.idx.co.id/"}]
["period"]
["instant",{"$f":"rap.date.9","v":"2010-09-30"}]
[]
["PriorYearInstant_OtherEquityInterestsMember"]
["entity"]
["identifier",{"$f":"rap.context.identifier","v":"\n    entityCode\n   "}]
["scheme",{"$f":"rap.context.scheme","v":"http://www.idx.co.id/"}]
["period"]
["instant",{"$f":"rap.date.9","v":"2010-09-30"}]
[]
["PriorYearInstant_OtherReservesMember"]
["entity"]
["identifier",{"$f":"rap.context.identifier","v":"\n    entityCode\n   "}]
["scheme",{"$f":"rap.context.scheme","v":"http://www.idx.co.id/"}]
["period"]
["instant",{"$f":"rap.date.9","v":"2010-09-30"}]
[]
["PriorYearInstant_OtherTransactionsWithNonControllingInterestsMember"]
["entity"]
["identifier",{"$f":"rap.context.identifier","v":"\n    entityCode\n   "}]
["scheme",{"$f":"rap.context.scheme","v":"http://www.idx.co.id/"}]
["period"]
["instant",{"$f":"rap.date.9","v":"2010-09-30"}]
[]
["PriorYearInstant_PreferredStocksMember"]
["entity"]
["identifier",{"$f":"rap.context.identifier","v":"\n    entityCode\n   "}]
["scheme",{"$f":"rap.context.scheme","v":"http://www.idx.co.id/"}]
["period"]
["instant",{"$f":"rap.date.9","v":"2010-09-30"}]
[]
["PriorYearInstant_ProformaEquityMember"]
["entity"]
["identifier",{"$f":"rap.context.identifier","v":"\n    entityCode\n   "}]
["scheme",{"$f":"rap.context.scheme","v":"http://www.idx.co.id/"}]
["period"]
["instant",{"$f":"rap.date.9","v":"2010-09-30"}]
[]
["PriorYearInstant_ReserveForChangesInFairValueOfAvailableForSaleFinancialAssetsMember"]
["entity"]
["identifier",{"$f":"rap.context.identifier","v":"\n    entityCode\n   "}]
["scheme",{"$f":"rap.context.scheme","v":"http://www.idx.co.id/"}]
["period"]
["instant",{"$f":"rap.date.9","v":"2010-09-30"}]
[]
["PriorYearInstant_ReserveOfCashFlowHedgesMember"]
["entity"]
["identifier",{"$f":"rap.context.identifier","v":"\n    entityCode\n   "}]
["scheme",{"$f":"rap.context.scheme","v":"http://www.idx.co.id/"}]
["period"]
["instant",{"$f":"rap.date.9","v":"2010-09-30"}]
[]
["PriorYearInstant_ReserveOfExchangeDifferencesOnTranslationMember"]
["entity"]
["identifier",{"$f":"rap.context.identifier","v":"\n    entityCode\n   "}]
["scheme",{"$f":"rap.context.scheme","v":"http://www.idx.co.id/"}]
["period"]
["instant",{"$f":"rap.date.9","v":"2010-09-30"}]
[]
["PriorYearInstant_ReserveOfGainsLossesFromInvestmentsInEquityInstrumentsMember"]
["entity"]
["identifier",{"$f":"rap.context.identifier","v":"\n    entityCode\n   "}]
["scheme",{"$f":"rap.context.scheme","v":"http://www.idx.co.id/"}]
["period"]
["instant",{"$f":"rap.date.9","v":"2010-09-30"}]
[]
["PriorYearInstant_ReserveOfRemeasurementsOfDefinedBenefitPlansMember"]
["entity"]
["identifier",{"$f":"rap.context.identifier","v":"\n    entityCode\n   "}]
["scheme",{"$f":"rap.context.scheme","v":"http://www.idx.co.id/"}]
["period"]
["instant",{"$f":"rap.date.9","v":"2010-09-30"}]
[]
["PriorYearInstant_ReserveOfShareBasedPaymentsMember"]
["entity"]
["identifier",{"$f":"rap.context.identifier","v":"\n    entityCode\n   "}]
["scheme",{"$f":"rap.context.scheme","v":"http://www.idx.co.id/"}]
["period"]
["instant",{"$f":"rap.date.9","v":"2010-09-30"}]
[]
["PriorYearInstant_RetainedEarningsMember"]
["entity"]
["identifier",{"$f":"rap.context.identifier","v":"\n    entityCode\n   "}]
["scheme",{"$f":"rap.context.scheme","v":"http://www.idx.co.id/"}]
["period"]
["instant",{"$f":"rap.date.9","v":"2010-09-30"}]
[]
["PriorYearInstant_RevaluationReservesMember"]
["entity"]
["identifier",{"$f":"rap.context.identifier","v":"\n    entityCode\n   "}]
["scheme",{"$f":"rap.context.scheme","v":"http://www.idx.co.id/"}]
["period"]
["instant",{"$f":"rap.date.9","v":"2010-09-30"}]
[]
["PriorYearInstant_StockOptionsMember"]
["entity"]
["identifier",{"$f":"rap.context.identifier","v":"\n    entityCode\n   "}]
["scheme",{"$f":"rap.context.scheme","v":"http://www.idx.co.id/"}]
["period"]
["instant",{"$f":"rap.date.9","v":"2010-09-30"}]
[]
["PriorYearInstant_TreasuryStocksMember"]
["entity"]
["identifier",{"$f":"rap.context.identifier","v":"\n    entityCode\n   "}]
["scheme",{"$f":"rap.context.scheme","v":"http://www.idx.co.id/"}]
["period"]
["instant",{"$f":"rap.date.9","v":"2010-09-30"}]
[]
["PriorYearInstant_UnappropriatedRetainedEarningsMember"]
["entity"]
["identifier",{"$f":"rap.context.identifier","v":"\n    entityCode\n   "}]
["scheme",{"$f":"rap.context.scheme","v":"http://www.idx.co.id/"}]
["period"]
["instant",{"$f":"rap.date.9","v":"2010-09-30"}]
[]
["Prior2YearsInstant"]
["entity"]
["identifier",{"$f":"rap.context.identifier","v":"\n    entityCode\n   "}]
["scheme",{"$f":"rap.context.scheme","v":"http://www.idx.co.id/"}]
["period"]
["instant",{"$f":"rap.date.12","v":"2009-12-31"}]

{"sheet":"1000000","index":1,"n_rows":37,"n_cols":3,"rows_kept":37}
["[1000000] General information"]
[]
["Informasi umum",null,"General information"]
[null,"30 September 2020"]
["Nama entitas","Wijaya Karya Beton","Entity name"]
["Penjelasan perubahan nama dari akhir periode laporan sebelumnya",null,"Explanation of change in name from the end of the preceding reporting period"]
["Kode entitas","WTON","Entity code"]
["Nomor identifikasi entitas","AA680","Entity identification number"]
["Industri utama entitas","Umum / General","Entity main industry"]
["Sektor","3. Basic Industry And Chemicals","Sector"]
["Subsektor","31. Cement","Subsector"]
["Informasi pemegang saham pengendali","Indonesian Government","Controlling shareholder information"]
["Jenis entitas","Local Company - Indonesia Jurisdiction","Type of entity"]
["Jenis efek yang dicatatkan","Saham / Stock","Type of listed securities"]
["Jenis papan perdagangan tempat entitas tercatat",null,"Type of board on which the entity is listed"]
["Apakah merupakan laporan keuangan satu entitas atau suatu kelompok entitas","Entitas grup / Group entity","Whether the financial statements are of an individual entity or a group of entities"]
["Periode penyampaian laporan keuangan","Kuartal III / Third Quarter","Period of financial statements submissions"]
["Tanggal awal periode berjalan","2020-01-01","Current period start date"]
["Tanggal akhir periode berjalan","2020-09-30","Current period end date"]
["Tanggal akhir tahun sebelumnya","2019-12-31","Prior year end date"]
["Tanggal awal periode sebelumnya","2019-01-01","Prior period start date"]
["Tanggal akhir periode sebelumnya","2019-09-30","Prior period end date"]
["Mata uang pelaporan","Rupiah / IDR","Description of presentation currency"]
["Kurs konversi pada tanggal pelaporan jika mata uang penyajian selain rupiah",null,"Conversion rate at reporting date if presentation currency is other than rupiah"]
["Pembulatan yang digunakan dalam penyajian jumlah dalam laporan keuangan","Satuan Penuh / Full Amount","Level of rounding used in financial statements"]
["Jenis laporan atas laporan keuangan","Tidak Diaudit / Unaudit","Type of report on financial statements"]
["Jenis opini auditor",null,"Type of auditor's opinion"]
["Hal yang diungkapkan dalam paragraf pendapat untuk penekanan atas suatu masalah atau paragraf penjelasan lainnya, jika ada",null,"Matters disclosed in emphasis-of-matter or other-matter paragraph, if any"]
["Hasil penugasan review",null,"Result of review engagement"]
["Tanggal laporan audit atau hasil laporan review",null,"Date of auditor's opinion or result of review report"]
["Auditor tahun berjalan",null,"Current year auditor"]
["Nama partner audit tahun berjalan",null,"Name of current year audit signing partner"]
["Lama tahun penugasan partner yang menandatangani",null,"Number of years served as audit signing partner"]
["Auditor tahun sebelumnya","Amir Abadi Jusuf, Aryanto, Mawar & Rekan","Prior year auditor"]
["Nama partner audit tahun sebelumnya","Benny Andria","Name of prior year audit signing partner"]
["Kepatuhan terhadap pemenuhan peraturan BAPEPAM LK VIII G 11 tentang tanggung jawab direksi atas laporan keuangan","Ya / Yes","Whether in compliance with BAPEPAM LK VIII G 11 rules concerning responsibilities of board of directors on financial statements"]
["Kepatuhan terhadap pemenuhan peraturan BAPEPAM LK VIII A dua tentang independensi akuntan yang memberikan jasa audit di pasar modal","Ya / Yes","Whether in compliance with BAPEPAM LK VIII A two rules concerning independence of accountant providing audit services in capital market"]

{"sheet":"1210000","index":2,"n_rows":257,"n_cols":4,"rows_kept":257,"merged":[[0,0,0,5]]}
["[1210000] Statement of financial position presented using current and non-current - General Industry"]
[]
["Laporan posisi keuangan",null,null,"Statement of financial position"]
[null,"30 September 2020","31 December 2019"]
["Aset",null,null,"Assets"]
["Aset lancar",null,null,"Current assets"]
["Kas dan setara kas",{"v":1068114378384,"d":"1,068,114,378,384"},{"v":1602280750520,"d":"1,602,280,750,520"},"Cash and cash equivalents"]
["Wesel tagih",null,null,"Notes receivable"]
["Investasi jangka pendek",null,null,"Short-term investments"]
["Dana yang dibatasi penggunaannya lancar",null,null,"Current restricted funds"]
["Aset keuangan lancar",null,null,"Current financial assets"]
["Aset keuangan lancar yang diukur pada nilai wajar melalui laba rugi",null,null,"Current financial assets at fair value through profit or loss"]
["Aset keuangan dimiliki hingga jatuh tempo lancar",{"v":1261856153709,"d":"1,261,856,153,709"},{"v":1822894033207,"d":"1,822,894,033,207"},"Current financial assets held-to-maturity investments"]
["Aset keuangan lancar tersedia untuk dijual",null,null,"Current financial assets available-for-sale"]
["Aset keuangan lancar lainnya",null,null,"Other current financial assets"]
["Aset keuangan derivatif lancar",null,null,"Current derivative financial assets"]
["Piutang usaha",null,null,"Trade receivables"]
["Piutang usaha pihak ketiga",{"v":370657218260,"d":"370,657,218,260"},{"v":570928456771,"d":"570,928,456,771"},"Trade receivables third parties"]
["Piutang usaha pihak berelasi",{"v":641332405742,"d":"641,332,405,742"},{"v":738604641514,"d":"738,604,641,514"},"Trade receivables related parties"]
["Piutang sewa pembiayaan lancar",null,null,"Current finance lease receivables"]
["Piutang retensi",null,null,"Retention receivables"]
["Piutang retensi pihak ketiga",null,null,"Retention receivables third parties"]
["Piutang retensi pihak berelasi",null,null,"Retention receivables related parties"]
["Tagihan bruto pemberi kerja",null,null,"Unbilled receivables"]
["Tagihan bruto pemberi kerja pihak ketiga",{"v":397673777258,"d":"397,673,777,258"},{"v":461166732495,"d":"461,166,732,495"},"Unbilled receivables third parties"]
["Tagihan bruto pemberi kerja pihak berelasi",null,null,"Unbilled receivables related parties"]
["Piutang subsidi",null,null,"Receivables on subsidy"]
["Piutang nasabah lancar",null,null,"Current customer receivables"]
["Piutang nasabah lancar pihak ketiga",null,null,"Current customer receivables third parties"]
["Piutang nasabah lancar pihak berelasi",null,null,"Current customer receivables related parties"]
["Piutang margin",null,null,"Margin receivables"]
["Piutang dari lembaga kliring dan penjaminan",null,null,"Receivables from clearing and settlement guarantee institution"]
["Piutang premi dan reasuransi",null,null,"Premium and reinsurance receivables"]
["Piutang dividen dan bunga",null,null,"Dividends and interest receivables"]
["Piutang lainnya",null,null,"Other receivables"]
["Piutang lainnya pihak ketiga",{"v":4245625655,"d":"4,245,625,655"},{"v":5683158149,"d":"5,683,158,149"},"Other receivables third parties"]
["Piutang lainnya pihak berelasi",{"v":10427366673,"d":"10,427,366,673"},{"v":15776036586,"d":"15,776,036,586"},"Other receivables related parties"]
["Persediaan lancar",null,null,"Current inventories"]
["Persediaan hewan ternak lancar",null,null,"Current livestock inventories"]
["Persediaan aset real estat lancar",null,null,"Current real estate assets"]
["Persediaan lancar lainnya",{"v":1051722587591,"d":"1,051,722,587,591"},{"v":1148378932136,"d":"1,148,378,932,136"},"Current inventories"]
["Biaya dibayar dimuka lancar",{"v":444414462325,"d":"444,414,462,325"},{"v":356152549923,"d":"356,152,549,923"},"Current prepaid expenses"]
["Jaminan",null,null,"Guarantees"]
["Uang muka lancar",null,null,"Current advances"]
["Uang muka lancar atas investasi",null,null,"Current advances on investments"]
["Uang muka lancar atas pembelian aset tetap",null,null,"Current advances on purchase of property, plant and equipment"]
["Uang muka lancar lainnya",{"v":28971156410,"d":"28,971,156,410"},{"v":38473203747,"d":"38,473,203,747"},"Other current advances"]
["Pajak dibayar dimuka lancar",{"v":786510075945,"d":"786,510,075,945"},{"v":408574050787,"d":"408,574,050,787"},"Current prepaid taxes"]
["Klaim atas pengembalian pajak lancar",null,null,"Current claims for tax refund"]
["Biaya pengupasan tanah yang ditangguhkan lancar",null,null,"Current deferred stripping costs"]
["Biaya mobilisasi yang ditangguhkan lancar",null,null,"Current deferred mobilisation costs"]
["Aset pengampunan pajak lancar",null,null,"Current tax amnesty assets"]
["Aset non-keuangan lancar lainnya",null,null,"Other current non-financial assets"]
["Aset tidak lancar atau kelompok lepasan diklasifikasikan sebagai dimiliki untuk dijual",null,null,"Non-current assets or disposal groups classified as held-for-sale"]
["Aset tidak lancar atau kelompok lepasan diklasifikasikan sebagai dimiliki untuk didistribusikan kepada pemilik",null,null,"Non-current assets or disposal groups classified as held-for-distribution to owners"]
["Jumlah aset lancar",{"v":6065925207952,"d":"6,065,925,207,952"},{"v":7168912545835,"d":"7,168,912,545,835"},"Total current assets"]
["Aset tidak lancar",null,null,"Non-current assets"]
["Piutang sewa pembiayaan tidak lancar",null,null,"Non-current finance lease receivables"]
["Dana yang dibatasi penggunaannya tidak lancar",null,null,"Non-current restricted funds"]
["Dana cadangan perawatan pesawat",null,null,"Aircraft maintenance reserve funds"]
["Piutang dari pihak berelasi",null,null,"Receivables from related parties"]
["Piutang dari pemegang saham",null,null,"Receivables from stockholders"]
["Piutang nasabah tidak lancar",null,null,"Non-current customer receivables"]
["Piutang nasabah tidak lancar pihak ketiga",null,null,"Non-current customer receivables third parties"]
["Piutang nasabah tidak lancar pihak berelasi",null,null,"Non-current customer receivables related parties"]
["Piutang tidak lancar lainnya",null,null,"Other non-current receivables"]
["Piutang tidak lancar lainnya pihak ketiga",null,null,"Other non-current receivables third parties"]
["Piutang tidak lancar lainnya pihak berelasi",null,null,"Other non-current receivables related parties"]
["Investasi yang dicatat dengan menggunakan metode ekuitas",null,null,"Investments accounted for using equity method"]
["Investasi pada entitas anak, ventura bersama, dan entitas asosiasi",null,null,"Investments in subsidiaries, joint ventures and associates"]
["Investasi pada entitas anak",null,null,"Investments in subsidiaries"]
["Investasi pada entitas ventura bersama",{"v":13255939182,"d":"13,255,939,182"},{"v":21846517440,"d":"21,846,517,440"},"Investments in joint ventures"]
["Investasi pada entitas asosiasi",{"v":30094531393,"d":"30,094,531,393"},{"v":30322603468,"d":"30,322,603,468"},"Investments in associates"]
["Uang muka tidak lancar",null,null,"Non-current advances"]
["Uang muka tidak lancar atas investasi",null,null,"Non-current advances on investments"]
["Uang muka tidak lancar atas pembelian aset tetap",null,null,"Non-current advances on purchase of property, plant and equipment"]
["Uang muka tidak lancar lainnya",null,null,"Other non-current advances"]
["Aset keuangan tidak lancar",null,null,"Non-current financial assets"]
["Aset keuangan tidak lancar yang diukur pada nilai wajar melalui laba rugi",null,null,"Non-current financial assets at fair value through profit or loss"]
["Aset keuangan tidak lancar dimiliki hingga jatuh tempo",{"v":143396519994,"d":"143,396,519,994"},null,"Non-current financial assets held-to-maturity"]
["Aset keuangan tidak lancar tersedia untuk dijual",null,null,"Non-current financial assets available-for-sale"]
["Aset keuangan tidak lancar lainnya",null,null,"Other non-current financial assets"]
["Aset keuangan derivatif tidak lancar",null,null,"Non-current derivative financial assets"]
["Biaya dibayar dimuka tidak lancar",null,null,"Non-current prepaid expenses"]
["Pajak dibayar dimuka tidak lancar",null,null,"Non-current prepaid taxes"]
["Aset pajak tangguhan",{"v":25772398063,"d":"25,772,398,063"},{"v":3911023727,"d":"3,911,023,727"},"Deferred tax assets"]
["Persediaan tidak lancar",null,null,"Non-current inventories"]
["Persediaan hewan ternak tidak lancar",null,null,"Non-current livestock inventories"]
["Aset real estat tidak lancar",null,null,"Non-current real estate assets"]
["Persediaan tidak lancar lainnya",null,null,"Non-current inventories"]
["Hewan ternak produksi",null,null,"Livestock production"]
["Hutan tanaman industri",null,null,"Industrial timber plantations"]
["Hutan tanaman industri menghasilkan",null,null,"Industrial timber plantations mature"]
["Hutan tanaman industri belum menghasilkan",null,null,"Industrial timber plantations immature"]
["Tanaman perkebunan",null,null,"Plantation assets"]
["Tanaman perkebunan menghasilkan",null,null,"Plantation assets mature"]
["Tanaman perkebunan belum menghasilkan",null,null,"Plantation assets immature"]
["Perkebunan plasma",null,null,"Plasma plantations"]
["Aset reasuransi",null,null,"Reinsurance assets"]
["Properti investasi",{"v":7.97142E10,"d":"79,714,200,000"},{"v":7.9408E10,"d":"79,408,000,000"},"Investment properties"]
["Aset tetap",{"v":2886130588868,"d":"2,886,130,588,868"},{"v":3012075396737,"d":"3,012,075,396,737"},"Property, plant and equipment"]
["Aset ijarah",null,null,"Ijarah assets"]
["Agunan yang diambil alih",null,null,"Foreclosed assets"]
["Aset minyak dan gas bumi",null,null,"Oil and gas assets"]
["Aset eksplorasi dan evaluasi",null,null,"Exploration and evaluation assets"]
["Hak konsesi jalan tol",null,null,"Toll road concession rights"]
["Properti pertambangan",null,null,"Mining properties"]
["Biaya pengupasan tanah yang ditangguhkan tidak lancar",null,null,"Non-current deferred stripping costs"]
["Biaya mobilisasi yang ditangguhkan tidak lancar",null,null,"Non-current deferred mobilisation costs"]
["Beban tangguhan",null,null,"Deferred charges"]
["Beban tangguhan hak atas tanah",null,null,"Deferred charges on landrights"]
["Beban tangguhan atas biaya eksplorasi dan pengembangan",null,null,"Deferred charges on exploration and development expenditures"]
["Beban tangguhan atas biaya pengelolaan hak pengusahaan hutan",null,null,"Deferred charges on cost on forest"]
["Beban tangguhan atas biaya pengelolaan dan reklamasi lingkungan hidup",null,null,"Deferred charges on environmental and reclamation expenditures"]
["Beban tangguhan lainnya",null,null,"Other deferred charges"]
["Klaim atas pengembalian pajak tidak lancar",null,null,"Non-current claims for tax refund"]
["Aset imbalan pasca kerja",null,null,"Post-employment benefit assets"]
["Goodwill",null,null,"Goodwill"]
["Aset takberwujud selain goodwill",null,null,"Intangible assets other than goodwill"]
["Aset pengampunan pajak tidak lancar",null,null,"Non-current tax amnesty assets"]
["Aset tidak lancar non-keuangan lainnya",{"v":2.1419E10,"d":"21,419,000,000"},{"v":2.1419E10,"d":"21,419,000,000"},"Other non-current non-financial assets"]
["Jumlah aset tidak lancar",{"v":3199783177500,"d":"3,199,783,177,500"},{"v":3168982541372,"d":"3,168,982,541,372"},"Total non-current assets"]
["Jumlah aset",{"v":9265708385452,"d":"9,265,708,385,452"},{"v":10337895087207,"d":"10,337,895,087,207"},"Total assets"]
["Liabilitas dan ekuitas",null,null,"Liabilities and equity"]
["Liabilitas",null,null,"Liabilities"]
["Liabilitas jangka pendek",null,null,"Current liabilities"]
["Pinjaman jangka pendek",{"v":2727292384581,"d":"2,727,292,384,581"},{"v":2035684801444,"d":"2,035,684,801,444"},"Short-term loans"]
["Utang trust receipts",null,null,"Trust receipts payables"]
["Utang usaha",null,null,"Trade payables"]
["Utang usaha pihak ketiga",{"v":657978615113,"d":"657,978,615,113"},{"v":859093836233,"d":"859,093,836,233"},"Trade payables third parties"]
["Utang usaha pihak berelasi",{"v":67798582722,"d":"67,798,582,722"},{"v":39453506099,"d":"39,453,506,099"},"Trade payables related parties"]
["Utang lainnya",null,null,"Other payables"]
["Utang lainnya pihak ketiga",{"v":6250480114,"d":"6,250,480,114"},{"v":26504795376,"d":"26,504,795,376"},"Other payables third parties"]
["Utang lainnya pihak berelasi",0,{"v":14432448262,"d":"14,432,448,262"},"Other payables related parties"]
["Uang muka pelanggan jangka pendek",null,null,"Current advances from customers"]
["Uang muka pelanggan jangka pendek pihak ketiga",{"v":140885813605,"d":"140,885,813,605"},{"v":280051641319,"d":"280,051,641,319"},"Current advances from customers third parties"]
["Uang muka pelanggan jangka pendek pihak berelasi",{"v":94570017206,"d":"94,570,017,206"},{"v":133446265711,"d":"133,446,265,711"},"Current advances from customers related parties"]
["Utang dividen",null,null,"Dividends payable"]
["Liabilitas keuangan jangka pendek lainnya",null,null,"Other current financial liabilities"]
["Beban akrual jangka pendek",{"v":1096157235556,"d":"1,096,157,235,556"},{"v":2065504675825,"d":"2,065,504,675,825"},"Current accrued expenses"]
["Liabilitas imbalan pasca kerja jangka pendek",null,null,"Short-term post-employment benefit obligations"]
["Utang pajak",{"v":403993187378,"d":"403,993,187,378"},{"v":116229962299,"d":"116,229,962,299"},"Taxes payable"]
["Utang cukai",null,null,"Excise payable"]
["Utang proyek",null,null,"Project payables"]
["Utang kepada lembaga kliring dan penjaminan",null,null,"Payables to clearing and settlement guarantee institution"]
["Utang nasabah",null,null,"Payables to customers"]
["Utang nasabah pihak ketiga",null,null,"Payables to customers third parties"]
["Utang nasabah pihak berelasi",null,null,"Payables to customers related parties"]
["Utang reasuransi",null,null,"Reinsurance payables"]
["Liabilitas anjak piutang",null,null,"Factoring payables"]
["Uang jaminan jangka pendek",null,null,"Current deposits"]
["Pendapatan diterima dimuka jangka pendek",{"v":257178922262,"d":"257,178,922,262"},{"v":296705373223,"d":"296,705,373,223"},"Current unearned revenue"]
["Liabilitas bruto kepada pemberi kerja",null,null,"Due to customers"]
["Liabilitas bruto kepada pemberi kerja pihak ketiga",null,null,"Due to customers third parties"]
["Liabilitas bruto kepada pemberi kerja pihak berelasi",null,null,"Due to customers related parties"]
["Pendapatan ditangguhkan jangka pendek",null,null,"Current deferred revenue"]
["Provisi jangka pendek",null,null,"Current provisions"]
["Provisi jangka pendek pelapisan jalan tol",null,null,"Current provisions for overlay"]
["Provisi jangka pendek biaya pengembalian dan pemeliharaan pesawat",null,null,"Current provisions for aircraft return and maintenance funds"]
["Provisi jangka pendek pembangunan prasarana, fasilitas umum, dan sosial",null,null,"Current provisions for infrastructure development, public and social facilities"]
["Provisi jangka pendek biaya pembongkaran aset tetap",null,null,"Current provisions for asset dismantling costs"]
["Provisi jangka pendek restorasi dan rehabilitasi",null,null,"Current provisions for restoration and rehabilitation"]
["Provisi jangka pendek lainnya",null,null,"Other current provisions"]
["Liabilitas pembayaran berbasis saham",null,null,"Share-based payment liabilities"]
["Liabilitas jangka panjang yang jatuh tempo dalam satu tahun",null,null,"Current maturities of long-term liabilities"]
["Liabilitas jangka panjang yang jatuh tempo dalam satu tahun atas utang bank",0,{"v":2.5E11,"d":"250,000,000,000"},"Current maturities of bank loans"]
["Liabilitas jangka panjang yang jatuh tempo dalam satu tahun atas pinjaman beragunan",null,null,"Current maturities of secured loans"]
["Liabilitas jangka panjang yang jatuh tempo dalam satu tahun atas pinjaman tanpa agunan",null,null,"Current maturities of unsecured loans"]
["Liabilitas jangka panjang yang jatuh tempo dalam satu tahun atas penerusan pinjaman",null,null,"Current maturities of step loans"]
["Liabilitas jangka panjang yang jatuh tempo dalam satu tahun atas pinjaman dari pemerintah republik indonesia",null,null,"Current maturities of loans from government of the republic of indonesia"]
["Liabilitas jangka panjang yang jatuh tempo dalam satu tahun atas pinjaman subordinasi",null,null,"Current maturities of subordinated loans"]
["Liabilitas jangka panjang yang jatuh tempo dalam satu tahun atas liabilitas kerja sama operasi",null,null,"Current maturities of joint operations liabilities"]
["Liabilitas jangka panjang yang jatuh tempo dalam satu tahun atas liabilitas pembebasan tanah",null,null,"Current maturities of land acquisition liabilities"]
["Liabilitas jangka panjang yang jatuh tempo dalam satu tahun atas utang pembiayaan konsumen",null,null,"Current maturities of consumer financing payables"]
["Liabilitas jangka panjang yang jatuh tempo dalam satu tahun atas liabilitas sewa pembiayaan",{"v":59074230157,"d":"59,074,230,157"},{"v":77947654987,"d":"77,947,654,987"},"Current maturities of finance lease liabilities"]
["Liabilitas jangka panjang yang jatuh tempo dalam satu tahun atas utang listrik swasta",null,null,"Current maturities of electricity purchase payables"]
["Liabilitas jangka panjang yang jatuh tempo dalam satu tahun atas utang retensi",null,null,"Current maturities of retention payables"]
["Liabilitas jangka panjang yang jatuh tempo dalam satu tahun atas wesel bayar",null,null,"Current maturities of notes payable"]
["Liabilitas jangka panjang yang jatuh tempo dalam satu tahun atas utang obligasi",null,null,"Current maturities of bonds payable"]
["Liabilitas jangka panjang yang jatuh tempo dalam satu tahun atas sukuk",null,null,"Current maturities of sukuk"]
["Liabilitas jangka panjang yang jatuh tempo dalam satu tahun atas pinjaman lainnya",null,null,"Current maturities of other borrowings"]
["Utang pihak berelasi jangka pendek",null,null,"Current due to related parties"]
["Utang pemegang saham jangka pendek",null,null,"Current due to stockholders"]
["Liabilitas keuangan derivatif jangka pendek",null,null,"Short-term derivative financial liabilities"]
["Liabilitas pengampunan pajak lancar",null,null,"Current tax amnesty liabilities"]
["Liabilitas non-keuangan jangka pendek lainnya",null,null,"Other current non-financial liabilities"]
["Liabilitas yang secara langsung berhubungan dengan aset tidak lancar atau kelompok lepasan yang diklasifikasikan sebagai dimiliki untuk dijual atau dimiliki untuk didistribusikan kepada pemilik",null,null,"Liabilities directly associated with non-current assets or disposal groups classified as held-for-sale or as held-for-distribution to owners"]
["Jumlah liabilitas jangka pendek",{"v":5511179468694,"d":"5,511,179,468,694"},{"v":6195054960778,"d":"6,195,054,960,778"},"Total current liabilities"]
["Liabilitas jangka panjang",null,null,"Non-current liabilities"]
["Liabilitas keuangan derivatif jangka panjang",null,null,"Long-term derivative financial liabilities"]
["Liabilitas pajak tangguhan",0,{"v":29667636658,"d":"29,667,636,658"},"Deferred tax liabilities"]
["Utang pihak berelasi jangka panjang",null,null,"Non-current due to related parties"]
["Utang pemegang saham jangka panjang",null,null,"Non-current due to stockholders"]
["Liabilitas jangka panjang setelah dikurangi bagian yang jatuh tempo dalam satu tahun",null,null,"Long-term liabilities net of current maturities"]
["Liabilitas jangka panjang atas utang bank",{"v":4.1E11,"d":"410,000,000,000"},{"v":5.0E11,"d":"500,000,000,000"},"Long-term bank loans"]
["Liabilitas jangka panjang atas penerusan pinjaman",null,null,"Long-term step loans"]
["Liabilitas jangka panjang atas pinjaman beragunan",null,null,"Long-term secured loans"]
["Liabilitas jangka panjang atas pinjaman tanpa agunan",null,null,"Long-term unsecured loans"]
["Liabilitas jangka panjang atas pinjaman dari pemerintah republik indonesia",null,null,"Long-term loans from government of the republic of indonesia"]
["Liabilitas jangka panjang atas pinjaman subordinasi",null,null,"Long-term subordinated loans"]
["Liabilitas jangka panjang atas liabilitas kerja sama operasi",null,null,"Long-term joint operations liabilities"]
["Liabilitas jangka panjang atas liabilitas pembebasan tanah",null,null,"Long-term land acquisition liabilities"]
["Liabilitas jangka panjang atas utang pembiayaan konsumen",null,null,"Long-term consumer financing payables"]
["Liabilitas jangka panjang atas liabilitas sewa pembiayaan",{"v":4142013072,"d":"4,142,013,072"},{"v":34212061802,"d":"34,212,061,802"},"Long-term finance lease liabilities"]
["Liabilitas jangka panjang atas utang listrik swasta",null,null,"Long-term electricity purchase payables"]
["Liabilitas jangka panjang atas utang retensi",null,null,"Long-term retention payables"]
["Liabilitas jangka panjang atas wesel bayar",null,null,"Long-term notes payable"]
["Liabilitas jangka panjang atas utang obligasi",null,null,"Long-term bonds payable"]
["Liabilitas jangka panjang atas sukuk",null,null,"Long-term sukuk"]
["Liabilitas jangka panjang atas pinjaman lainnya",null,null,"Long-term other borrowings"]
["Obligasi konversi",null,null,"Convertible bonds"]
["Pendapatan diterima dimuka jangka panjang",null,null,"Non-current unearned revenue"]
["Uang jaminan jangka panjang",null,null,"Non-current deposits"]
["Uang muka pelanggan jangka panjang",null,null,"Non-current advances from customers"]
["Uang muka pelanggan jangka panjang pihak ketiga",null,null,"Non-current advances from customers third parties"]
["Uang muka pelanggan jangka panjang pihak berelasi",null,null,"Non-current advances from customers related parties"]
["Pendapatan ditangguhkan jangka panjang",null,null,"Non-current deferred revenue"]
["Provisi jangka panjang",null,null,"Non-current provisions"]
["Provisi pelapisan jalan tol jangka panjang",null,null,"Non-current provisions for overlay"]
["Provisi biaya pengembalian dan pemeliharaan pesawat jangka panjang",null,null,"Non-current provisions for aircraft return and maintenance funds"]
["Provisi pembangunan prasarana, fasilitas umum, dan sosial jangka panjang",null,null,"Non-current provisions for infrastructure development, public and social facilities"]
["Provisi biaya pembongkaran aset tetap jangka panjang",null,null,"Non-current provisions for asset dismantling costs"]
["Provisi restorasi dan rehabilitasi jangka panjang",null,null,"Non-current provisions for restoration and rehabilitation"]
["Provisi jangka panjang lainnya",null,null,"Other non-current provisions"]
["Biaya pengupasan tanah yang masih harus dibayar",null,null,"Accrued stripping costs"]
["Liabilitas kepada pemegang polis",null,null,"Liabilities to policyholders"]
["Kewajiban imbalan pasca kerja jangka panjang",{"v":20850594640,"d":"20,850,594,640"},{"v":70514487962,"d":"70,514,487,962"},"Long-term post-employment benefit obligations"]
["Liabilitas pengampunan pajak tidak lancar",null,null,"Non-current tax amnesty liabilities"]
["Liabilitas keuangan jangka panjang lainnya",null,null,"Other non-current financial liabilities"]
["Liabilitas non-keuangan jangka panjang",null,null,"Other non-current non-financial liabilities"]
["Jumlah liabilitas jangka panjang",{"v":434992607712,"d":"434,992,607,712"},{"v":634394186422,"d":"634,394,186,422"},"Total non-current liabilities"]
["Jumlah liabilitas",{"v":5946172076406,"d":"5,946,172,076,406"},{"v":6829449147200,"d":"6,829,449,147,200"},"Total liabilities"]
["Ekuitas",null,null,"Equity"]
["Ekuitas yang diatribusikan kepada pemilik entitas induk",null,null,"Equity attributable to equity owners of parent entity"]
["Saham biasa",{"v":8.7154666E11,"d":"871,546,660,000"},{"v":8.7154666E11,"d":"871,546,660,000"},"Common stocks"]
["Saham preferen",null,null,"Preferred stocks"]
["Tambahan modal disetor",{"v":988633419562,"d":"988,633,419,562"},{"v":973193706603,"d":"973,193,706,603"},"Additional paid-in capital"]
["Saham tresuri",{"v":0,"d":"(0)"},{"v":58246193143,"d":"(58,246,193,143)"},"Treasury stocks"]
["Uang muka setoran modal",null,null,"Advances in capital stock"]
["Opsi saham",null,null,"Stock options"]
["Cadangan revaluasi",null,null,"Revaluation reserves"]
["Cadangan selisih kurs penjabaran",null,null,"Reserve of exchange differences on translation"]
["Cadangan perubahan nilai wajar aset keuangan tersedia untuk dijual",null,null,"Reserve for changes in fair value of available-for-sale financial assets"]
["Cadangan keuntungan (kerugian) investasi pada instrumen ekuitas",null,null,"Reserve of gains (losses) from investments in equity instruments"]
["Cadangan pembayaran berbasis saham",null,null,"Reserve of share-based payments"]
["Cadangan lindung nilai arus kas",null,null,"Reserve of cash flow hedges"]
["Cadangan pengukuran kembali program imbalan pasti",null,null,"Reserve of remeasurements of defined benefit plans"]
["Cadangan lainnya",null,null,"Other reserves"]
["Komponen ekuitas lainnya",null,null,"Other components of equity"]
["Saldo laba (akumulasi kerugian)",null,null,"Retained earnings (deficit)"]
["Saldo laba yang telah ditentukan penggunaannya",{"v":344817328522,"d":"344,817,328,522"},{"v":242297750536,"d":"242,297,750,536"},"Appropriated retained earnings"]
["Saldo laba yang belum ditentukan penggunaannya",{"v":1048354364135,"d":"1,048,354,364,135"},{"v":1408926053627,"d":"1,408,926,053,627"},"Unappropriated retained earnings"]
["Jumlah ekuitas yang diatribusikan kepada pemilik entitas induk",{"v":3253351772219,"d":"3,253,351,772,219"},{"v":3437717977623,"d":"3,437,717,977,623"},"Total equity attributable to equity owners of parent entity"]
["Proforma ekuitas",null,null,"Proforma equity"]
["Kepentingan non-pengendali",{"v":66184536827,"d":"66,184,536,827"},{"v":70727962384,"d":"70,727,962,384"},"Non-controlling interests"]
["Jumlah ekuitas",{"v":3319536309046,"d":"3,319,536,309,046"},{"v":3508445940007,"d":"3,508,445,940,007"},"Total equity"]
["Jumlah liabilitas dan ekuitas",{"v":9265708385452,"d":"9,265,708,385,452"},{"v":10337895087207,"d":"10,337,895,087,207"},"Total liabilities and equity"]

{"sheet":"1311000","index":3,"n_rows":58,"n_cols":4,"rows_kept":58,"merged":[[0,0,0,5]]}
["[1311000] Statement of profit or loss and other comprehensive income, OCI components presented net of tax, by function - General Industry"]
[]
["Laporan laba rugi dan penghasilan komprehensif lain",null,null,"Statement of profit or loss and other comprehensive income"]
[null,"30 September 2020","30 September 2019"]
["Penjualan dan pendapatan usaha",{"v":2955728060537,"d":"2,955,728,060,537"},{"v":4371139547161,"d":"4,371,139,547,161"},"Sales and revenue"]
["Beban pokok penjualan dan pendapatan",{"v":2792344570119,"d":"(2,792,344,570,119)"},{"v":3772550503970,"d":"(3,772,550,503,970)"},"Cost of sales and revenue"]
["Jumlah laba bruto",{"v":163383490418,"d":"163,383,490,418"},{"v":598589043191,"d":"598,589,043,191"},"Total gross profit"]
["Beban penjualan",{"v":507623965,"d":"(507,623,965)"},{"v":1262508093,"d":"(1,262,508,093)"},"Selling expenses"]
["Beban umum dan administrasi",{"v":83861497968,"d":"(83,861,497,968)"},{"v":106840355449,"d":"(106,840,355,449)"},"General and administrative expenses"]
["Pendapatan keuangan",{"v":18402890038,"d":"18,402,890,038"},{"v":4246767091,"d":"4,246,767,091"},"Finance income"]
["Beban keuangan",{"v":75829916951,"d":"(75,829,916,951)"},{"v":101106673291,"d":"(101,106,673,291)"},"Finance costs"]
["Keuntungan (kerugian) selisih kurs mata uang asing",{"v":-2849594736,"d":"(2,849,594,736)"},{"v":1250639050,"d":"1,250,639,050"},"Gains (losses) on changes in foreign exchange rates"]
["Bagian atas laba (rugi) entitas asosiasi yang dicatat dengan menggunakan metode ekuitas",{"v":-228072074,"d":"(228,072,074)"},{"v":1537149230,"d":"1,537,149,230"},"Share of profit (loss) of associates accounted for using equity method"]
["Bagian atas laba (rugi) entitas ventura bersama yang dicatat menggunakan metode ekuitas",{"v":-3039667100,"d":"(3,039,667,100)"},{"v":-1555185205,"d":"(1,555,185,205)"},"Share of profit (loss) of joint ventures accounted for using equity method"]
["Keuntungan (kerugian) atas instrumen keuangan derivatif",null,null,"Gains (losses) on derivative financial instruments"]
["Pendapatan lainnya",{"v":196989684421,"d":"196,989,684,421"},{"v":24576504614,"d":"24,576,504,614"},"Other income"]
["Beban lainnya",{"v":153729990625,"d":"(153,729,990,625)"},{"v":36207952739,"d":"(36,207,952,739)"},"Other expenses"]
["Keuntungan (kerugian) lainnya",null,null,"Other gains (losses)"]
["Jumlah laba (rugi) sebelum pajak penghasilan",{"v":58729701458,"d":"58,729,701,458"},{"v":383227428399,"d":"383,227,428,399"},"Total profit (loss) before tax"]
["Pendapatan (beban) pajak",{"v":-8370696705,"d":"(8,370,696,705)"},{"v":-82042343069,"d":"(82,042,343,069)"},"Tax benefit (expenses)"]
["Jumlah laba (rugi) dari operasi yang dilanjutkan",{"v":50359004753,"d":"50,359,004,753"},{"v":301185085330,"d":"301,185,085,330"},"Total profit (loss) from continuing operations"]
["Laba (rugi) dari operasi yang dihentikan",null,null,"Profit (loss) from discontinued operations"]
["Jumlah laba (rugi)",{"v":50359004753,"d":"50,359,004,753"},{"v":301185085330,"d":"301,185,085,330"},"Total profit (loss)"]
["Pendapatan komprehensif lainnya, setelah pajak",null,null,"Other comprehensive income, after tax"]
["Pendapatan komprehensif lainnya yang tidak akan direklasifikasi ke laba rugi, setelah pajak",null,null,"Other comprehensive income that will not be reclassified to profit or loss, after tax"]
["Pendapatan komprehensif lainnya atas keuntungan (kerugian) hasil revaluasi aset tetap, setelah pajak",null,null,"Other comprehensive income for gains (losses) on revaluation of property, plant and equipment, after tax"]
["Pendapatan komprehensif lainnya atas pengukuran kembali kewajiban manfaat pasti, setelah pajak",{"v":-405397501,"d":"(405,397,501)"},0,"Other comprehensive income for remeasurement of defined benefit obligation, after tax"]
["Penyesuaian lainnya atas pendapatan komprehensif lainnya yang tidak akan direklasifikasi ke laba rugi, setelah pajak",null,null,"Other adjustments to other comprehensive income that will not be reclassified to profit or loss, after tax"]
["Jumlah pendapatan komprehensif lainnya yang tidak akan direklasifikasi ke laba rugi, setelah pajak",{"v":-405397501,"d":"(405,397,501)"},0,"Total other comprehensive income that will not be reclassified to profit or loss, after tax"]
["Pendapatan komprehensif lainnya yang akan direklasifikasi ke laba rugi, setelah pajak",null,null,"Other comprehensive income that may be reclassified to profit or loss, after tax"]
["Keuntungan (kerugian) selisih kurs penjabaran, setelah pajak",null,null,"Gains (losses) on exchange differences on translation, after tax"]
["Penyesuaian reklasifikasi selisih kurs penjabaran, setelah pajak",null,null,"Reclassification adjustments on exchange differences on translation, after tax"]
["Keuntungan (kerugian) yang belum direalisasi atas perubahan nilai wajar aset keuangan yang tersedia untuk dijual, setelah pajak",null,null,"Unrealised gains (losses) on changes in fair value of available-for-sale financial assets, after tax"]
["Penyesuaian reklasifikasi atas aset keuangan tersedia untuk dijual, setelah pajak",null,null,"Reclassification adjustments on available-for-sale financial assets, after tax"]
["Keuntungan (kerugian) lindung nilai arus kas, setelah pajak",null,null,"Gains (losses) on cash flow hedges, after tax"]
["Penyesuaian reklasifikasi atas lindung nilai arus kas, setelah pajak",null,null,"Reclassification adjustments on cash flow hedges, after tax"]
["Nilai tercatat dari aset (liabilitas) non-keuangan yang perolehan atau keterjadiannya merupakan suatu prakiraan transaksi yang kemungkinan besar terjadi yang dilindung nilai, setelah pajak",null,null,"Carrying amount of non-financial asset (liability) whose acquisition or incurrence was hedged on highly probable forecast transaction, adjusted from equity, after tax"]
["Keuntungan (kerugian) lindung nilai investasi bersih kegiatan usaha luar negeri, setelah pajak",null,null,"Gains (losses) on hedges of net investments in foreign operations, after tax"]
["Penyesuaian reklasifikasi atas lindung nilai investasi bersih kegiatan usaha luar negeri, setelah pajak",null,null,"Reclassification adjustments on hedges of net investments in foreign operations, after tax"]
["Bagian pendapatan komprehensif lainnya dari entitas asosiasi yang dicatat dengan menggunakan metode ekuitas, setelah pajak",null,null,"Share of other comprehensive income of associates accounted for using equity method, after tax"]
["Bagian pendapatan komprehensif lainnya dari entitas ventura bersama yang dicatat dengan menggunakan metode ekuitas, setelah pajak",null,null,"Share of other comprehensive income of joint ventures accounted for using equity method, after tax"]
["Penyesuaian lainnya atas pendapatan komprehensif lainnya yang akan direklasifikasi ke laba rugi, setelah pajak",null,null,"Other adjustments to other comprehensive income that may be reclassified to profit or loss, after tax"]
["Jumlah pendapatan komprehensif lainnya yang akan direklasifikasi ke laba rugi, setelah pajak",null,null,"Total other comprehensive income that may be reclassified to profit or loss, after tax"]
["Jumlah pendapatan komprehensif lainnya, setelah pajak",{"v":-405397501,"d":"(405,397,501)"},0,"Total other comprehensive income, after tax"]
["Jumlah laba rugi komprehensif",{"v":49953607252,"d":"49,953,607,252"},{"v":301185085330,"d":"301,185,085,330"},"Total comprehensive income"]
["Laba (rugi) yang dapat diatribusikan",null,null,"Profit (loss) attributable to"]
["Laba (rugi) yang dapat diatribusikan ke entitas induk",{"v":54916770045,"d":"54,916,770,045"},{"v":303262590800,"d":"303,262,590,800"},"Profit (loss) attributable to parent entity"]
["Laba (rugi) yang dapat diatribusikan ke kepentingan non-pengendali",{"v":-4557765292,"d":"(4,557,765,292)"},{"v":-2077505470,"d":"(2,077,505,470)"},"Profit (loss) attributable to non-controlling interests"]
["Laba rugi komprehensif yang dapat diatribusikan",null,null,"Comprehensive income attributable to"]
["Laba rugi komprehensif yang dapat diatribusikan ke entitas induk",{"v":54376423209,"d":"54,376,423,209"},{"v":303262590800,"d":"303,262,590,800"},"Comprehensive income attributable to parent entity"]
["Laba rugi komprehensif yang dapat diatribusikan ke kepentingan non-pengendali",{"v":-4422815957,"d":"(4,422,815,957)"},{"v":-2077505470,"d":"(2,077,505,470)"},"Comprehensive income attributable to non-controlling interests"]
["Laba (rugi) per saham",null,null,"Earnings (loss) per share"]
["Laba per saham dasar diatribusikan kepada pemilik entitas induk",null,null,"Basic earnings per share attributable to equity owners of the parent entity"]
["Laba (rugi) per saham dasar dari operasi yang dilanjutkan",{"v":6.3,"d":"6.30"},{"v":34.8,"d":"34.80"},"Basic earnings (loss) per share from continuing operations"]
["Laba (rugi) per saham dasar dari operasi yang dihentikan",null,null,"Basic earnings (loss) per share from discontinued operations"]
["Laba (rugi) per saham dilusian",null,null,"Diluted earnings (loss) per share"]
["Laba (rugi) per saham dilusian dari operasi yang dilanjutkan",null,null,"Diluted earnings (loss) per share from continuing operations"]
["Laba (rugi) per saham dilusian dari operasi yang dihentikan",null,null,"Diluted earnings (loss) per share from discontinued operations"]

{"sheet":"1410000 1 CurrentYear","index":4,"n_rows":41,"n_cols":26,"rows_kept":41,"merged":[[5,0,6,0],[5,25,6,25]]}
["[1410000] Statement of changes in equity - General Industry - Current Year"]
[]
["30 September 2020"]
[]
["Laporan perubahan ekuitas",{"$nulls":24},"Statement of changes in equity"]
[null,"Saham biasa","Saham preferen","Tambahan modal disetor","Saham tresuri","Uang muka setoran modal","Opsi saham","Cadangan revaluasi","Cadangan selisih kurs penjabaran","Cadangan perubahan nilai wajar aset keuangan tersedia untuk dijual","Cadangan keuntungan (kerugian) investasi pada instrumen ekuitas","Cadangan pembayaran berbasis saham","Cadangan lindung nilai arus kas","Cadangan pengukuran kembali program imbalan pasti","Cadangan lainnya","Kepentingan ekuitas lainnya","Selisih transaksi ekuitas dengan pihak non-pengendali","Transaksi dengan pihak non-pengendali lainnya","Komponen transaksi ekuitas lainnya","Saldo laba yang telah ditentukan penggunaannya","Saldo laba yang belum ditentukan penggunaannya","Ekuitas yang dapat diatribusikan kepada entitas induk","Proforma ekuitas","Kepentingan non-pengendali","Ekuitas"]
[null,"Common stocks","Preferred stocks","Additional paid-in capital","Treasury stocks","Advances in capital stock","Stock options","Revaluation reserves","Reserve of exchange differences on translation","Reserve for changes in fair value of available-for-sale financial assets","Reserve of gains (losses) from investments in equity instruments","Reserve of share-based payments","Reserve of cash flow hedges","Reserve of remeasurements of defined benefit plans","Other reserves","Other equity interests","Difference in value of equity transactions with non-controlling interests","Other transactions with non-controlling interests","Other components of equity transactions","Appropriated retained earnings","Unappropriated retained earnings","Equity attributable to parent entity","Proforma equity","Non-controlling interests","Equity"]
["Posisi ekuitas",{"$nulls":24},"Equity position"]
["Saldo awal periode sebelum penyajian kembali",{"v":8.7154666E11,"d":"871,546,660,000"},null,{"v":973193706603,"d":"973,193,706,603"},{"v":-58246193143,"d":"(58,246,193,143)"},{"$nulls":14},{"v":242297750536,"d":"242,297,750,536"},{"v":1408926053627,"d":"1,408,926,053,627"},{"v":3437717977623,"d":"3,437,717,977,623"},null,{"v":70727962384,"d":"70,727,962,384"},{"v":3508445940007,"d":"3,508,445,940,007"},"Balance before restatement at beginning of period"]
["Penyesuaian",{"$nulls":24},"Adjustments"]
["Penerapan awal standar akuntansi baru dan revisi",{"$nulls":19},{"v":-184352113866,"d":"(184,352,113,866)"},{"v":-184352113866,"d":"(184,352,113,866)"},null,{"v":-93095384,"d":"(93,095,384)"},{"v":-184445209250,"d":"(184,445,209,250)"},"Initial adoption of new and revised accounting standards"]
["Perubahan kebijakan akuntansi secara sukarela",{"$nulls":24},"Voluntary changes in accounting policies"]
["Koreksi kesalahan periode lalu",{"$nulls":24},"Correction of prior period errors"]
["Penyesuaian lainnya",{"$nulls":24},"Other adjustments"]
["Posisi ekuitas, awal periode",{"v":8.7154666E11,"d":"871,546,660,000"},null,{"v":973193706603,"d":"973,193,706,603"},{"v":-58246193143,"d":"(58,246,193,143)"},{"$nulls":14},{"v":242297750536,"d":"242,297,750,536"},{"v":1224573939761,"d":"1,224,573,939,761"},{"v":3253365863757,"d":"3,253,365,863,757"},null,{"v":70634867000,"d":"70,634,867,000"},{"v":3324000730757,"d":"3,324,000,730,757"},"Equity position, beginning of the period"]
["Laba (rugi)",{"$nulls":19},{"v":54916770045,"d":"54,916,770,045"},{"v":54916770045,"d":"54,916,770,045"},null,{"v":-4557765292,"d":"(4,557,765,292)"},{"v":50359004753,"d":"50,359,004,753"},"Profit (loss)"]
["Pendapatan komprehensif lainnya",{"$nulls":19},{"v":-540346836,"d":"(540,346,836)"},{"v":-540346836,"d":"(540,346,836)"},null,{"v":134949335,"d":"134,949,335"},{"v":-405397501,"d":"(405,397,501)"},"Other comprehensive income"]
["Pembentukan cadangan umum",{"$nulls":18},{"v":102519577986,"d":"102,519,577,986"},{"v":-102519577986,"d":"(102,519,577,986)"},0,{"$nulls":3},"Allocation for general reserves"]
["Distribusi dividen kas",{"$nulls":19},{"v":128076420849,"d":"(128,076,420,849)"},{"v":128076420849,"d":"(128,076,420,849)"},null,{"v":27514216,"d":"(27,514,216)"},{"v":128103935065,"d":"(128,103,935,065)"},"Distributions of cash dividends"]
["Distribusi dividen saham",{"$nulls":24},"Distributions of stock dividends"]
["Penerbitan saham biasa",{"$nulls":24},"Issuance of common stocks"]
["Penerbitan saham preferen",{"$nulls":24},"Issuance of preferred stocks"]
["Biaya emisi efek",{"$nulls":24},"Stock issuance costs"]
["Penerbitan instrumen yang dapat dikonversi",{"$nulls":24},"Issuance of convertible instruments"]
["Kenaikan (penurunan) ekuitas melalui transaksi saham tresuri",null,null,{"v":15439712959,"d":"15,439,712,959"},{"v":58246193143,"d":"58,246,193,143"},{"$nulls":16},{"v":73685906102,"d":"73,685,906,102"},null,null,{"v":73685906102,"d":"73,685,906,102"},"Increase (decrease) in equity through treasury stock transactions"]
["Kenaikan (penurunan) ekuitas melalui transaksi pembayaran berbasis saham",{"$nulls":24},"Increase (decrease) in equity through share-based payment transactions"]
["Pelaksanaan instrumen yang dapat dikonversi",{"$nulls":24},"Exercise of convertible instruments"]
["Pelaksanaan waran",{"$nulls":24},"Exercise of warrants"]
["Kenaikan (penurunan) ekuitas melalui transaksi dengan pemilik ekuitas",{"$nulls":24},"Increase (decrease) in equity through transactions with owner's equity"]
["Setoran modal dari kepentingan non-pengendali",{"$nulls":24},"Stock subscription from non-controlling interests"]
["Perubahan kepentingan non-pengendali atas akuisisi entitas anak",{"$nulls":24},"Changes in non-controlling interests due to acquisition of subsidiaries"]
["Perubahan kepentingan non-pengendali atas pendirian entitas anak",{"$nulls":24},"Changes in non-controlling interests due to establishment of subsidiaries"]
["Perubahan kepentingan non-pengendali atas pelepasan entitas anak",{"$nulls":24},"Changes in non-controlling interests due to disposal of subsidiaries"]
["Perubahan kepentingan non-pengendali atas pelepasan operasi yang dihentikan",{"$nulls":24},"Changes in non-controlling interests due to disposal of a discontinued operation"]
["Perubahan kepentingan non-pengendali atas pelepasan sebagian kepemilikan pada entitas anak yang tidak mengakibatkan hilangnya pengendalian",{"$nulls":24},"Changes in non-controlling interests due to partial disposal of interests in subsidiaries without loss of control"]
["Perubahan kepentingan non-pengendali atas transaksi lainnya dengan kepentingan non-pengendali",{"$nulls":24},"Changes in non-controlling interests due to other transactions with non-controlling interests"]
["Eliminasi defisit dalam rangka kuasi reorganisasi",{"$nulls":24},"Elimination of deficit in connection with quasi-reorganisation"]
["Pelaksanaan opsi saham",{"$nulls":24},"Stock options exercised"]
["Dampak penerapan PSAK No. 70 atas aset pengampunan pajak",{"$nulls":24},"Impact of PSAK No. 70 adoption on tax amnesty assets"]
["Transaksi ekuitas lainnya",{"$nulls":24},"Other equity transactions"]
["Posisi ekuitas, akhir periode",{"v":8.7154666E11,"d":"871,546,660,000"},null,{"v":988633419562,"d":"988,633,419,562"},0,{"$nulls":14},{"v":344817328522,"d":"344,817,328,522"},{"v":1048354364135,"d":"1,048,354,364,135"},{"v":3253351772219,"d":"3,253,351,772,219"},null,{"v":66184536827,"d":"66,184,536,827"},{"v":3319536309046,"d":"3,319,536,309,046"},"Equity position, end of the period"]

{"sheet":"1410000 2 PriorYear","index":5,"n_rows":41,"n_cols":26,"rows_kept":41,"merged":[[5,0,6,0],[5,25,6,25]]}
["[1410000] Statement of changes in equity - General Industry - Prior Year"]
[]
["30 September 2019"]
[]
["Laporan perubahan ekuitas",{"$nulls":24},"Statement of changes in equity"]
[null,"Saham biasa","Saham preferen","Tambahan modal disetor","Saham tresuri","Uang muka setoran modal","Opsi saham","Cadangan revaluasi","Cadangan selisih kurs penjabaran","Cadangan perubahan nilai wajar aset keuangan tersedia untuk dijual","Cadangan keuntungan (kerugian) investasi pada instrumen ekuitas","Cadangan pembayaran berbasis saham","Cadangan lindung nilai arus kas","Cadangan pengukuran kembali program imbalan pasti","Cadangan lainnya","Kepentingan ekuitas lainnya","Selisih transaksi ekuitas dengan pihak non-pengendali","Transaksi dengan pihak non-pengendali lainnya","Komponen transaksi ekuitas lainnya","Saldo laba yang telah ditentukan penggunaannya","Saldo laba yang belum ditentukan penggunaannya","Ekuitas yang dapat diatribusikan kepada entitas induk","Proforma ekuitas","Kepentingan non-pengendali","Ekuitas"]
[null,"Common stocks","Preferred stocks","Additional paid-in capital","Treasury stocks","Advances in capital stock","Stock options","Revaluation reserves","Reserve of exchange differences on translation","Reserve for changes in fair value of available-for-sale financial assets","Reserve of gains (losses) from investments in equity instruments","Reserve of share-based payments","Reserve of cash flow hedges","Reserve of remeasurements of defined benefit plans","Other reserves","Other equity interests","Difference in value of equity transactions with non-controlling interests","Other transactions with non-controlling interests","Other components of equity transactions","Appropriated retained earnings","Unappropriated retained earnings","Equity attributable to parent entity","Proforma equity","Non-controlling interests","Equity"]
["Posisi ekuitas",{"$nulls":24},"Equity position"]
["Saldo awal periode sebelum penyajian kembali",{"v":8.7154666E11,"d":"871,546,660,000"},null,{"v":973193706603,"d":"973,193,706,603"},{"v":-58246193143,"d":"(58,246,193,143)"},{"$nulls":14},{"v":143194248877,"d":"143,194,248,877"},{"v":1134793746643,"d":"1,134,793,746,643"},{"v":3064482168980,"d":"3,064,482,168,980"},null,{"v":72329841225,"d":"72,329,841,225"},{"v":3136812010205,"d":"3,136,812,010,205"},"Balance before restatement at beginning of period"]
["Penyesuaian",{"$nulls":24},"Adjustments"]
["Penerapan awal standar akuntansi baru dan revisi",{"$nulls":24},"Initial adoption of new and revised accounting standards"]
["Perubahan kebijakan akuntansi secara sukarela",{"$nulls":24},"Voluntary changes in accounting policies"]
["Koreksi kesalahan periode lalu",{"$nulls":24},"Correction of prior period errors"]
["Penyesuaian lainnya",{"$nulls":24},"Other adjustments"]
["Posisi ekuitas, awal periode",{"v":8.7154666E11,"d":"871,546,660,000"},null,{"v":973193706603,"d":"973,193,706,603"},{"v":-58246193143,"d":"(58,246,193,143)"},{"$nulls":14},{"v":143194248877,"d":"143,194,248,877"},{"v":1134793746643,"d":"1,134,793,746,643"},{"v":3064482168980,"d":"3,064,482,168,980"},null,{"v":72329841225,"d":"72,329,841,225"},{"v":3136812010205,"d":"3,136,812,010,205"},"Equity position, beginning of the period"]
["Laba (rugi)",{"$nulls":19},{"v":303262590800,"d":"303,262,590,800"},{"v":303262590800,"d":"303,262,590,800"},null,{"v":-2077505470,"d":"(2,077,505,470)"},{"v":301185085330,"d":"301,185,085,330"},"Profit (loss)"]
["Pendapatan komprehensif lainnya",{"$nulls":24},"Other comprehensive income"]
["Pembentukan cadangan umum",{"$nulls":18},{"v":97270611586,"d":"97,270,611,586"},{"v":-97270611586,"d":"(97,270,611,586)"},{"$nulls":3},0,"Allocation for general reserves"]
["Distribusi dividen kas",{"$nulls":19},{"v":145920401358,"d":"(145,920,401,358)"},{"v":145920401358,"d":"(145,920,401,358)"},null,{"v":17394918,"d":"(17,394,918)"},{"v":145937796276,"d":"(145,937,796,276)"},"Distributions of cash dividends"]
["Distribusi dividen saham",{"$nulls":24},"Distributions of stock dividends"]
["Penerbitan saham biasa",{"$nulls":24},"Issuance of common stocks"]
["Penerbitan saham preferen",{"$nulls":24},"Issuance of preferred stocks"]
["Biaya emisi efek",{"$nulls":24},"Stock issuance costs"]
["Penerbitan instrumen yang dapat dikonversi",{"$nulls":24},"Issuance of convertible instruments"]
["Kenaikan (penurunan) ekuitas melalui transaksi saham tresuri",{"$nulls":24},"Increase (decrease) in equity through treasury stock transactions"]
["Kenaikan (penurunan) ekuitas melalui transaksi pembayaran berbasis saham",{"$nulls":24},"Increase (decrease) in equity through share-based payment transactions"]
["Pelaksanaan instrumen yang dapat dikonversi",{"$nulls":24},"Exercise of convertible instruments"]
["Pelaksanaan waran",{"$nulls":24},"Exercise of warrants"]
["Kenaikan (penurunan) ekuitas melalui transaksi dengan pemilik ekuitas",{"$nulls":24},"Increase (decrease) in equity through transactions with owner's equity"]
["Setoran modal dari kepentingan non-pengendali",{"$nulls":24},"Stock subscription from non-controlling interests"]
["Perubahan kepentingan non-pengendali atas akuisisi entitas anak",{"$nulls":24},"Changes in non-controlling interests due to acquisition of subsidiaries"]
["Perubahan kepentingan non-pengendali atas pendirian entitas anak",{"$nulls":24},"Changes in non-controlling interests due to establishment of subsidiaries"]
["Perubahan kepentingan non-pengendali atas pelepasan entitas anak",{"$nulls":24},"Changes in non-controlling interests due to disposal of subsidiaries"]
["Perubahan kepentingan non-pengendali atas pelepasan operasi yang dihentikan",{"$nulls":24},"Changes in non-controlling interests due to disposal of a discontinued operation"]
["Perubahan kepentingan non-pengendali atas pelepasan sebagian kepemilikan pada entitas anak yang tidak mengakibatkan hilangnya pengendalian",{"$nulls":24},"Changes in non-controlling interests due to partial disposal of interests in subsidiaries without loss of control"]
["Perubahan kepentingan non-pengendali atas transaksi lainnya dengan kepentingan non-pengendali",{"$nulls":24},"Changes in non-controlling interests due to other transactions with non-controlling interests"]
["Eliminasi defisit dalam rangka kuasi reorganisasi",{"$nulls":24},"Elimination of deficit in connection with quasi-reorganisation"]
["Pelaksanaan opsi saham",{"$nulls":24},"Stock options exercised"]
["Dampak penerapan PSAK No. 70 atas aset pengampunan pajak",{"$nulls":24},"Impact of PSAK No. 70 adoption on tax amnesty assets"]
["Transaksi ekuitas lainnya",{"$nulls":24},"Other equity transactions"]
["Posisi ekuitas, akhir periode",{"v":8.7154666E11,"d":"871,546,660,000"},null,{"v":973193706603,"d":"973,193,706,603"},{"v":-58246193143,"d":"(58,246,193,143)"},{"$nulls":14},{"v":240464860463,"d":"240,464,860,463"},{"v":1194865324499,"d":"1,194,865,324,499"},{"v":3221824358422,"d":"3,221,824,358,422"},null,{"v":70234940837,"d":"70,234,940,837"},{"v":3292059299259,"d":"3,292,059,299,259"},"Equity position, end of the period"]

{"sheet":"1510000","index":6,"n_rows":161,"n_cols":4,"rows_kept":161}
["[1510000] Statement of cash flows, direct method - General Industry"]
[]
["Laporan arus kas",null,null,"Statement of cash flows"]
[null,"30 September 2020","30 September 2019"]
["Arus kas dari aktivitas operasi",null,null,"Cash flows from operating activities"]
["Penerimaan kas dari aktivitas operasi",null,null,"Cash receipts from operating activities"]
["Penerimaan dari pelanggan",{"v":3804863929057,"d":"3,804,863,929,057"},{"v":3925915373795,"d":"3,925,915,373,795"},"Receipts from customers"]
["Penerimaan subsidi",null,null,"Receipts of subsidy"]
["Penerimaan dari royalti, fees, komisi, dan pendapatan lain",null,null,"Receipts from royalties, fees, commissions and other revenues"]
["Penerimaan dari kontrak yang dimiliki untuk tujuan diperdagangkan atau diperjualbelikan",null,null,"Receipts from contracts held-for-dealing or trading purposes"]
["Penerimaan kas lainnya dari aktivitas operasi",null,null,"Other cash receipts from operating activities"]
["Pembayaran kas dari aktivitas operasi",null,null,"Cash payments from operating activities"]
["Pembayaran kepada pemasok atas barang dan jasa",{"v":3558303647906,"d":"(3,558,303,647,906)"},{"v":3741546393063,"d":"(3,741,546,393,063)"},"Payments to suppliers for goods and services"]
["Pembayaran gaji dan tunjangan",{"v":260101424387,"d":"(260,101,424,387)"},{"v":273009057916,"d":"(273,009,057,916)"},"Payments for salaries and allowances"]
["Pembayaran royalti dan iuran eksploitasi",null,null,"Payments for royalties and exploitation fees"]
["Pembayaran kepada kontraktor",null,null,"Payments to contractors"]
["Pembayaran jasa manajemen",null,null,"Payments for management fees"]
["Pembayaran dari kontrak yang dimiliki untuk tujuan diperdagangkan atau diperjualbelikan",null,null,"Payments from contracts held-for-dealing or trading purposes"]
["Pembayaran kas lainnya untuk beban operasi",{"v":180143986444,"d":"(180,143,986,444)"},{"v":195513554410,"d":"(195,513,554,410)"},"Other cash payments for operating activities"]
["Kas diperoleh dari (digunakan untuk) operasi",{"v":-193685129680,"d":"(193,685,129,680)"},{"v":-284153631594,"d":"(284,153,631,594)"},"Cash generated from (used in) operations"]
["Penerimaan dividen dari aktivitas operasi",null,null,"Dividends received from operating activities"]
["Pembayaran dividen dari aktivitas operasi",null,null,"Dividends paid from operating activities"]
["Penerimaan bunga dari aktivitas operasi",{"v":23251007021,"d":"23,251,007,021"},{"v":6015050491,"d":"6,015,050,491"},"Interests received from operating activities"]
["Pembayaran bunga dari aktivitas operasi",{"v":80680905042,"d":"(80,680,905,042)"},{"v":97582547711,"d":"(97,582,547,711)"},"Interests paid from operating activities"]
["Penerimaan pengembalian (pembayaran) pajak penghasilan dari aktivitas operasi",{"v":-351115649809,"d":"(351,115,649,809)"},{"v":-421183521504,"d":"(421,183,521,504)"},"Income taxes refunded (paid) from operating activities"]
["Pembayaran utang cukai",null,null,"Payments for excise payable"]
["Pengembalian (penempatan) uang jaminan",null,null,"Repayment (placement) of refundable deposits"]
["Penerimaan (pengeluaran) kas lainnya dari aktivitas operasi",null,null,"Other cash inflows (outflows) from operating activities"]
["Arus kas sebelum perubahan dalam aset dan liabilitas yang diperoleh dari (digunakan untuk) aktivitas operasi",null,null,"Net cash flows received from (used in) operating activities before changes in assets and liabilities"]
["Penurunan (kenaikan) aset operasi",null,null,"Decrease (increase) from operation assets"]
["Penurunan (kenaikan) efek-efek",null,null,"Decrease (increase) from securities"]
["Penurunan (kenaikan) kredit",null,null,"Decrease (increase) from credit"]
["Penurunan (kenaikan) aset lainnya",null,null,"Decrease (increase) from other assets"]
["Kenaikan (penurunan) liabilitas",null,null,"Increase (decrease) from liabilities"]
["Kenaikan (penurunan) simpanan dan simpanan dari bank lain",null,null,"Increase (decrease) from deposits and deposits from other banks"]
["Kenaikan (penurunan) liabilitas lainnya",null,null,"Increase (decrease) from other liabilities"]
["Jumlah arus kas bersih yang diperoleh dari (digunakan untuk) aktivitas operasi",{"v":-602230677510,"d":"(602,230,677,510)"},{"v":-796904650318,"d":"(796,904,650,318)"},"Total net cash flows received from (used in) operating activities"]
["Arus kas dari aktivitas investasi",null,null,"Cash flows from investing activities"]
["Pembayaran biaya pengupasan tanah ditangguhkan",null,null,"Payments for deferred stripping costs"]
["Pembayaran biaya mobilisasi ditangguhkan",null,null,"Payments for deferred mobilisation costs"]
["Pembayaran biaya ditangguhkan",null,null,"Payments for deferred charges"]
["Penerimaan dari (pengeluaran untuk) dana pemeliharaan pesawat",null,null,"Receipts from (payments for) aircraft maintenance funds"]
["Pembayaran uang muka pembelian aset tetap",{"v":146341025780,"d":"(146,341,025,780)"},{"v":350875064425,"d":"(350,875,064,425)"},"Payments for advances for purchase of property, plant and equipment"]
["Penerimaan dari penjualan persediaan hewan ternak produksi",null,null,"Proceeds from disposal of livestock production"]
["Pembayaran untuk perolehan persediaan hewan ternak produksi",null,null,"Payments for acquisition of livestock production"]
["Penerimaan dari penjualan hutan tanaman industri",null,null,"Proceeds from disposal of industrial timber plantations"]
["Pembayaran untuk perolehan hutan tanaman industri",null,null,"Payments for acquisition of industrial timber plantations"]
["Penerimaan dari penjualan tanaman perkebunan",null,null,"Proceeds from disposal of plantation assets"]
["Pembayaran untuk perolehan tanaman perkebunan",null,null,"Payments for acquisition of plantation assets"]
["Penerimaan dari penjualan perkebunan plasma",null,null,"Proceeds from disposal of plasma plantations"]
["Pembayaran untuk perolehan perkebunan plasma",null,null,"Payments for acquisition of plasma plantations"]
["Penerimaan dari penjualan properti investasi",null,null,"Proceeds from disposal of investment properties"]
["Pembayaran untuk perolehan properti investasi",null,null,"Payments for acquisition of investment properties"]
["Penerimaan dari penjualan aset tetap",0,{"v":8.4E7,"d":"84,000,000"},"Proceeds from disposal of property, plant and equipment"]
["Pembayaran untuk perolehan aset tetap",null,null,"Payments for acquisition of property, plant and equipment"]
["Penerimaan dari penjualan aset agunan yang diambil alih",null,null,"Proceeds from disposal of foreclosed assets"]
["Penerimaan dari penjualan aset minyak dan gas bumi",null,null,"Proceeds from disposal of oil and gas assets"]
["Pembayaran untuk perolehan aset minyak dan gas bumi",null,null,"Payments for acquisition of oil and gas assets"]
["Penerimaan dari penjualan aset eksplorasi dan evaluasi",null,null,"Proceeds from disposal of exploration and evaluation assets"]
["Pembayaran untuk perolehan aset eksplorasi dan evaluasi",null,null,"Payments for acquisition of exploration and evaluation assets"]
["Penerimaan dari penjualan hak penguasaan jalan tol",null,null,"Proceeds from disposal of toll road concession rights"]
["Pembayaran untuk perolehan hak penguasaan jalan tol",null,null,"Payments for acquisition of toll road concession rights"]
["Penerimaan dari penjualan properti pertambangan",null,null,"Proceeds from disposal of mining properties"]
["Pembayaran untuk perolehan properti pertambangan",null,null,"Payments for acquisition of mining properties"]
["Penerimaan dari penjualan aset takberwujud",null,null,"Proceeds from disposal of intangible assets"]
["Pembayaran untuk perolehan aset takberwujud",null,null,"Payments for acquisition of intangible assets"]
["Penerimaan dari penjualan tanah dalam pengembangan",null,null,"Proceeds from disposal of land for development"]
["Pembayaran untuk perolehan tanah dalam pengembangan",null,null,"Payments for acquisition of land for development"]
["Penerimaan dari penjualan aset non-keuangan lainnya",null,null,"Proceeds from disposal of other non-financial assets"]
["Pembayaran untuk perolehan aset non-keuangan lainnya",null,null,"Payments for acquisition of other non-financial assets"]
["Pencairan (penempatan) investasi jangka pendek",null,null,"Withdrawal (placement) of short-term investments"]
["Pencairan (penempatan) aset keuangan yang diukur pada nilai wajar melalui laba rugi",null,null,"Withdrawal (placement) of financial assets at fair value through profit or loss"]
["Pencairan (penempatan) aset keuangan tersedia untuk dijual",null,null,"Withdrawal (placement) of financial assets available-for-sale"]
["Pencairan (penempatan) dana yang dibatasi penggunaannya dari aktivitas investasi",null,null,"Withdrawal (placement) of restricted funds from investing activities"]
["Penempatan aset keuangan dimiliki hingga jatuh tempo",null,null,"Placement of financial assets held-to-maturity investments"]
["Pencairan aset keuangan dimiliki hingga jatuh tempo",null,null,"Withdrawal of financial assets held-to-maturity investments"]
["Penerimaan dari penjualan aset keuangan",null,null,"Proceeds on sale of financial assets"]
["Pembayaran untuk perolehan aset keuangan",null,null,"Payments to acquire financial assets"]
["Penerimaan dari future contracts, forward contracts, option contracts, dan swap contracts",null,null,"Receipts from future contracts, forward contracts, option contracts and swap contracts"]
["Pembayaran untuk future contracts, forward contracts, option contracts, dan swap contracts",null,null,"Payments for future contracts, forward contracts, option contracts and swap contracts"]
["Pembayaran uang muka investasi",null,null,"Payments for advances on investments"]
["Penerimaan pembayaran piutang dari pihak berelasi",null,null,"Receipts from receivables from related parties"]
["Pembayaran pemberian piutang kepada pihak berelasi",null,null,"Payments of receivables from related parties"]
["Penerimaan pembayaran piutang dari pemegang saham",null,null,"Receipts from receivables from stockholders"]
["Pembayaran pemberian piutang kepada pemegang saham",null,null,"Payments of receivables from stockholders"]
["Uang muka dan pinjaman diberikan kepada pihak lain, selain institusi keuangan",null,null,"Cash advances and loans made to other parties, other than financing institutions"]
["Penerimaan pengembalian uang muka dan pinjaman diberikan kepada pihak lain",null,null,"Cash receipts from the repayment of advances and loans made to other parties"]
["Penerimaan dari pelepasan entitas anak",null,null,"Proceeds from disposal of subsidiaries"]
["Pembayaran untuk perolehan entitas anak",null,null,"Payments for acquisition of subsidiaries"]
["Penerimaan dari pelepasan kepentingan di entitas anak tanpa hilangnya pengendalian dari kegiatan investasi",null,null,"Proceeds from sales of interests in subsidiaries without loss of control from investing activities"]
["Pembayaran untuk perolehan tambahan kepemilikan pada entitas anak",null,null,"Payments for acquisition of additional interests in subsidiaries"]
["Penerimaan dari pelepasan kepemilikan pada entitas ventura bersama",{"v":6000911158,"d":"6,000,911,158"},0,"Proceeds from sales of interests in joint ventures"]
["Pembayaran untuk perolehan kepemilikan pada entitas ventura bersama",{"v":4.5E8,"d":"(450,000,000)"},{"v":0,"d":"(0)"},"Payments for acquisition of interests in joint ventures"]
["Penerimaan dari pelepasan kepemilikan pada entitas asosiasi",null,null,"Proceeds from sales of interests in associates"]
["Pembayaran untuk perolehan kepemilikan pada entitas asosiasi",null,null,"Payments for acquisition of interests in associates"]
["Penerimaan dari pelepasan aset tidak lancar atau kelompok lepasan yang diklasifikasikan sebagai dimiliki untuk dijual dan operasi yang dihentikan",null,null,"Proceeds from disposal of non-current assets or disposal groups classified as held-for-sale and discontinued operations"]
["Penerimaan dividen dari aktivitas investasi",null,null,"Dividends received from investing activities"]
["Penerimaan bunga dari aktivitas investasi",null,null,"Interests received from investing activities"]
["Pembayaran bunga dari aktivitas investasi",null,null,"Interests paid from investing activities"]
["Penerimaan pengembalian (pembayaran) pajak penghasilan dari aktivitas investasi",null,null,"Income taxes refunded (paid) from investing activities"]
["Penerimaan (pengeluaran) kas lainnya dari aktivitas investasi",null,null,"Other cash inflows (outflows) from investing activities"]
["Jumlah arus kas bersih yang diperoleh dari (digunakan untuk) aktivitas investasi",{"v":-140790114622,"d":"(140,790,114,622)"},{"v":-350791064425,"d":"(350,791,064,425)"},"Total net cash flows received from (used in) investing activities"]
["Arus kas dari aktivitas pendanaan",null,null,"Cash flows from financing activities"]
["Penerimaan pinjaman bank",{"v":1433567050386,"d":"1,433,567,050,386"},{"v":2389357560128,"d":"2,389,357,560,128"},"Proceeds from bank loans"]
["Pembayaran pinjaman bank",{"v":762279137371,"d":"(762,279,137,371)"},{"v":1758351213603,"d":"(1,758,351,213,603)"},"Payments of bank loans"]
["Penerimaan pinjaman beragunan",0,{"v":2.0E11,"d":"200,000,000,000"},"Proceeds from secured loans"]
["Pembayaran pinjaman beragunan",{"v":3.4E11,"d":"(340,000,000,000)"},{"v":1.5E11,"d":"(150,000,000,000)"},"Payments of secured loans"]
["Penerimaan pinjaman tanpa agunan",null,null,"Proceeds from unsecured loans"]
["Pembayaran pinjaman tanpa agunan",null,null,"Payments of unsecured loans"]
["Penerimaan pinjaman penerusan",null,null,"Proceeds from step loans"]
["Pembayaran pinjaman penerusan",null,null,"Payments of step loans"]
["Penerimaan utang dari bantuan pemerintah republik indonesia",null,null,"Proceeds from loan from government of the republic of indonesia"]
["Pembayaran utang bantuan dari pemerintah republik indonesia",null,null,"Payments of loan from government of the republic of indonesia"]
["Penerimaan pinjaman subordinasi",null,null,"Proceeds from subordinated loans"]
["Pembayaran pinjaman subordinasi",null,null,"Payments of subordinated loans"]
["Penerimaan liabilitas kerjasama operasi",null,null,"Proceeds from joint operation liabilities"]
["Pembayaran liabilitas kerjasama operasi",null,null,"Payments of joint operation liabilities"]
["Penerimaan utang pembiayaan konsumen",null,null,"Proceeds from consumer financing payables"]
["Pembayaran utang pembiayaan konsumen",null,null,"Payments of consumer financing payables"]
["Penerimaan liabilitas sewa pembiayaan",null,null,"Proceeds from finance lease liabilities"]
["Pembayaran liabilitas sewa pembiayaan",{"v":58263581279,"d":"(58,263,581,279)"},{"v":35383320888,"d":"(35,383,320,888)"},"Payments of finance lease liabilities"]
["Penerimaan utang listrik swasta",null,null,"Proceeds from electricity purchase payables"]
["Pembayaran utang listrik swasta",null,null,"Payments of electricity purchase payables"]
["Penerimaan utang retensi",null,null,"Proceeds from retention payables"]
["Pembayaran utang retensi",null,null,"Payments of retention payables"]
["Penerimaan wesel bayar",null,null,"Proceeds from notes payable"]
["Pembayaran wesel bayar",null,null,"Payments of notes payable"]
["Penerimaan dari penerbitan obligasi",null,null,"Proceeds from bonds payable"]
["Pembayaran utang obligasi",null,null,"Payments of bonds payable"]
["Penerimaan sukuk",null,null,"Proceeds from sukuk"]
["Pembayaran sukuk",null,null,"Payments of sukuk"]
["Penerimaan pinjaman lainnya",null,null,"Proceeds from other borrowings"]
["Pembayaran pinjaman lainnya",null,null,"Payments of other borrowings"]
["Penerimaan dari penerbitan obligasi konversi",null,null,"Proceeds from convertible bonds issuance"]
["Pembayaran obligasi konversi",null,null,"Payments of convertible bonds"]
["Pembayaran biaya emisi penerbitan obligasi",null,null,"Payments of bonds issuance costs"]
["Pencairan (penempatan) dana yang dibatasi penggunaannya dari aktivitas pendanaan",null,null,"Withdrawal (placement) of restricted funds from financing activities"]
["Penerimaan utang pihak berelasi",{"v":23608631162,"d":"23,608,631,162"},0,"Proceeds from due to related parties"]
["Pembayaran utang pihak berelasi",{"v":35608631162,"d":"(35,608,631,162)"},{"v":1.0E10,"d":"(10,000,000,000)"},"Payments of due to related parties"]
["Penerimaan utang pemegang saham",null,null,"Proceeds from due to stockholders"]
["Pembayaran utang pemegang saham",null,null,"Payments of due to stockholders"]
["Penerimaan dari penerbitan saham biasa",null,null,"Proceeds from issuance of common stocks"]
["Penerimaan dari penerbitan saham preferen",null,null,"Proceeds from issuance of preferred stocks"]
["Penerimaan dari penerbitan instrumen ekuitas lainnya",null,null,"Proceeds from issuing other equity instruments"]
["Pembayaran biaya emisi saham",null,null,"Payments of stock issuance costs"]
["Penerimaan dari penjualan (pembelian) saham tresuri",{"v":76185906102,"d":"76,185,906,102"},0,"Proceeds from sales (purchases) of treasury stocks"]
["Penerimaan dari program opsi saham karyawan",null,null,"Proceeds from employee stock options program"]
["Penyelesaian (penempatan) transaksi derivatif",null,null,"Settlement (placement) of derivative transactions"]
["Penerimaan dari pelepasan kepentingan di entitas anak tanpa hilangnya pengendalian dari kegiatan pendanaan",null,null,"Proceeds from sales of interests in subsidiaries without loss of control from financing activities"]
["Pembayaran untuk perolehan kepentingan pihak non-pengendali pada entitas anak",null,null,"Payments for acquisition of non-controlling interests in subsidiaries"]
["Pembayaran dividen dari aktivitas pendanaan",{"v":128103935065,"d":"(128,103,935,065)"},{"v":145937796276,"d":"(145,937,796,276)"},"Dividends paid from financing activities"]
["Penerimaan bunga dari aktivitas pendanaan",null,null,"Interests received from financing activities"]
["Pembayaran bunga dari aktivitas pendanaan",null,null,"Interests paid from financing activities"]
["Penerimaan pengembalian (pembayaran) pajak penghasilan dari aktivitas pendanaan",null,null,"Income taxes refunded (paid) from financing activities"]
["Penerimaan (pengeluaran) kas lainnya dari aktivitas pendanaan",null,null,"Other cash inflows (outflows) from financing activities"]
["Jumlah arus kas bersih yang diperoleh dari (digunakan untuk) aktivitas pendanaan",{"v":209106302773,"d":"209,106,302,773"},{"v":489685229361,"d":"489,685,229,361"},"Total net cash flows received from (used in) financing activities"]
["Jumlah kenaikan (penurunan) bersih kas dan setara kas",{"v":-533914489359,"d":"(533,914,489,359)"},{"v":-658010485382,"d":"(658,010,485,382)"},"Total net increase (decrease) in cash and cash equivalents"]
["Kas dan setara kas arus kas, awal periode",{"v":1602280750520,"d":"1,602,280,750,520"},{"v":865016441666,"d":"865,016,441,666"},"Cash and cash equivalents cash flows, beginning of the period"]
["Efek perubahan nilai kurs pada kas dan setara kas",{"v":-251882777,"d":"(251,882,777)"},{"v":-69926636,"d":"(69,926,636)"},"Effect of exchange rate changes on cash and cash equivalents"]
["Kenaikan (penurunan) kas dan setara kas lainnya",null,null,"Other increase (decrease) in cash and cash equivalents"]
["Kas dan setara kas arus kas, akhir periode",{"v":1068114378384,"d":"1,068,114,378,384"},{"v":206936029648,"d":"206,936,029,648"},"Cash and cash equivalents cash flows, end of the period"]

{"sheet":"hidden","index":7,"n_rows":57,"n_cols":15,"rows_kept":57,"hidden":true}
["Indonesian Government","Rupiah / IDR","Asuransi / Insurance","Satuan Penuh / Full Amount","Kuartal I / First Quarter","1. Agriculture","11. Crops","Wajar Tanpa Pengecualian / Unqualified","Utama / Main","Local Company - Indonesia Jurisdiction","Saham / Stock","Tidak Diaudit / Unaudit","Ya / Yes","Ya / Yes","Entitas tunggal / Single entity"]
["Individual WNI","Dollar Amerika / USD","Infrastruktur / Infrastructure","Ribuan / In Thousand","Kuartal II / Second Quarter","2. Mining","12. Plantation","Wajar Dengan Pengecualian / Qualified","Pengembangan / Development","Joint Venture - Indonesia Jurisdiction","Obligasi / Bond","Ditelaah secara Terbatas / Limited Review","Tidak / No","Tidak / No","Entitas grup / Group entity"]
["Individual Foreign, Residential",null,"Keuangan dan Syariah / Financial and Sharia","Jutaan / In Million","Kuartal III / Third Quarter","3. Basic Industry And Chemicals","13. Animal Husbandry","Tidak Wajar / Adverse",null,"Joint Venture - Non-Indonesia Jurisdiction","Saham dan Obligasi / Stock and Bond","Diaudit / Audited"]
["Individual Foreign, Non-Residential",null,"Kontrak Investasi Kolektif / Collective","Miliaran / In Billion","Tahunan / Annual","4. Miscellaneous Industry","14. Fishery","Tidak Memberikan Pendapat / Disclaimer",null,"Foreign Company","Sertifikat Penitipan Efek Indonesia / Indonesian Depository Receipt"]
["National Corporation",null,"Pembiayaan / Financing",null,null,"5. Consumer Goods Industry","15. Forestry",{"$nulls":3},"Efek Beragun Aset / Asset-Backed Securities"]
["Foreign Corporation",null,"Properti / Property",null,null,"6. Property, Real Estate And Building Construction","19. Others - Agriculture",{"$nulls":3},"Kontrak Investasi Kolektif / Collective Investment Contract"]
["National and Foreign Corporation",null,"Sekuritas / Securities",null,null,"7. Infrastructure, Utilities And Transportation","21. Coal Mining"]
["No Controlling Shareholder",null,"Umum / General",null,null,"8. Finance","22. Crude Petroleum & Natural Gas Production"]
[{"$nulls":5},"9. Trade, Services & Investment","23. Metal And Mineral Mining"]
[{"$nulls":5},"Collective","24. Land / Stone Quarrying"]
[{"$nulls":6},"29. Others - Mining"]
[{"$nulls":6},"31. Cement"]
[{"$nulls":6},"32. Ceramics, Glass, Porcelain"]
[{"$nulls":6},"33. Metal And Allied Products"]
[{"$nulls":6},"34. Chemicals"]
[{"$nulls":6},"35. Plastics & Packaging"]
[{"$nulls":6},"36. Animal Feed"]
[{"$nulls":6},"37. Wood Industries"]
[{"$nulls":6},"38. Pulp & Paper"]
[{"$nulls":6},"39. Others - Basic Industry And Chemicals"]
[{"$nulls":6},"41. Machinery And Heavy Equipment"]
[{"$nulls":6},"42. Automotive And Components"]
[{"$nulls":6},"43. Textile, Garment"]
[{"$nulls":6},"44. Footwear"]
[{"$nulls":6},"45. Cable"]
[{"$nulls":6},"46. Electronics"]
[{"$nulls":6},"49. Others - Miscellaneous Industry"]
[{"$nulls":6},"51. Food And Beverages"]
[{"$nulls":6},"52. Tobacco Manufacturers"]
[{"$nulls":6},"53. Pharmaceuticals"]
[{"$nulls":6},"54. Cosmetics And Household"]
[{"$nulls":6},"55. Houseware"]
[{"$nulls":6},"59. Others - Consumer Goods Industry"]
[{"$nulls":6},"61. Property And Real Estate"]
[{"$nulls":6},"62. Building Construction"]
[{"$nulls":6},"69. Others"]
[{"$nulls":6},"71. Energy"]
[{"$nulls":6},"72. Toll Road, Airport, Harbor And Allied Products"]
[{"$nulls":6},"73. Telecommunication"]
[{"$nulls":6},"74. Transportation"]
[{"$nulls":6},"75. Non Building Construction"]
[{"$nulls":6},"79. Others - Infrastructure, Utilities And Transportation"]
[{"$nulls":6},"81. Bank"]
[{"$nulls":6},"82. Financial Institution"]
[{"$nulls":6},"83. Securities Company"]
[{"$nulls":6},"84. Insurance"]
[{"$nulls":6},"85. Investment Fund / Mutual Fund"]
[{"$nulls":6},"89. Others - Finance"]
[{"$nulls":6},"91. Wholesale (Durable & Non-Durable Goods)"]
[{"$nulls":6},"93. Retail Trade"]
[{"$nulls":6},"94. Tourism, Restaurant And  Hotel"]
[{"$nulls":6},"95. Advertising, Printing And Media"]
[{"$nulls":6},"96. Healthcare"]
[{"$nulls":6},"97. Computer And Services"]
[{"$nulls":6},"98. Investment Company"]
[{"$nulls":6},"99. Others - Trade Services & Investment"]
[{"$nulls":6},"Collective"]

{"sheet":"Token","index":8,"n_rows":1,"n_cols":1,"rows_kept":1,"hidden":true}
["f`240@4*2#400)-%f08+1|6-0`0b13*;#62f)0%82c+01-8`0!59b*-#930)09;9+2|700`1299*-906)1%5-9+0|71b`;f2f*081e)9%0-c+089`-!3*0#;)20+1|9`-1*2-)3%1"]